Workbook

Sheet Analysis description
A1: Warm-up data for Bombus terrestris workers after 2 h in the fridge
A3: Aim to calculate equilibrated body surface temp after warm-up and max rate of warm up (degrees/min)
A5: Equilibrated temp: normally calculated as average of last 10 minutes but interval adjusted to ensure flat line
A7: Max rate: calculated as any max rate beginning at 18 celcius

Sheet Description
A1: Warm-up data for Bombus terrestris workers after 2 h in the fridge
A3: Aim to calculate equilibrated body surface temp after warm-up and max rate of warm up (degrees/min)
A5: Equilibrated temp: normally calculated as average of 6 minutes
A7: Max rate: calculated as any max rate above 18 celcius

Sheet GRAPHS FOR PAPER
A20: beta0 | B20: 1.5677
A21: beta1 | B21: -0.1035
A22: beta2 | B22: -0.15821
A25: b0 | B25: 25.391
A26: b1 | B26: -0.60094

Sheet GRAPHS

Sheet DATA COLLATED
A1: Bee | B1: Dose | C1: ug Dose | D1: log(ug Dose) | E1: Equilibrated temp (oC) | F1: Warming rate (oC/min) | J1: DOSE | K1: ug DOSE | L1: ln substitute | Q1: FITTED CURVES
A2: 1 | B2: 1 | C2: 0 | D2: -2.096910013 | E2: 25.05333333 | F2: 1.008333333 | J2: 1 | K2: 0 | L2: =1/125 -> 0.008 | Q2: -2.1 | R2: ='GRAPHS FOR PAPER'!B$20+'GRAPHS FOR PAPER'!B$21*'DATA COLLATED'!Q2+'GRAPHS FOR PAPER'!B$22*'DATA COLLATED'!Q2*'DATA COLLATED'!Q2 -> 1.0873439 | S2: ='GRAPHS FOR PAPER'!B$25+'GRAPHS FOR PAPER'!B$26*'DATA COLLATED'!Q2 -> 26.652974
A3: 2 | B3: 5 | C3: 1.28 | D3: 0.1072099696 | E3: 26.45 | F3: 1.55 | J3: 2 | K3: 0.08 | Q3: -2.09 | R3: ='GRAPHS FOR PAPER'!B$20+'GRAPHS FOR PAPER'!B$21*'DATA COLLATED'!Q3+'GRAPHS FOR PAPER'!B$22*'DATA COLLATED'!Q3*'DATA COLLATED'!Q3 -> 1.092937899 | S3: ='GRAPHS FOR PAPER'!B$25+'GRAPHS FOR PAPER'!B$26*'DATA COLLATED'!Q3 -> 26.6469646
A4: 3 | B4: 1 | C4: 0 | D4: -2.096910013 | E4: 27.32777778 | F4: 1.372222222 | J4: 3 | K4: 0.2 | Q4: -2.08 | R4: ='GRAPHS FOR PAPER'!B$20+'GRAPHS FOR PAPER'!B$21*'DATA COLLATED'!Q4+'GRAPHS FOR PAPER'!B$22*'DATA COLLATED'!Q4*'DATA COLLATED'!Q4 -> 1.098500256 | S4: ='GRAPHS FOR PAPER'!B$25+'GRAPHS FOR PAPER'!B$26*'DATA COLLATED'!Q4 -> 26.6409552
A5: 4 | B5: 1 | C5: 0 | D5: -2.096910013 | E5: 24.5 | F5: 0.73 | J5: 4 | K5: 0.51 | Q5: -2.07 | R5: ='GRAPHS FOR PAPER'!B$20+'GRAPHS FOR PAPER'!B$21*'DATA COLLATED'!Q5+'GRAPHS FOR PAPER'!B$22*'DATA COLLATED'!Q5*'DATA COLLATED'!Q5 -> 1.104030971 | S5: ='GRAPHS FOR PAPER'!B$25+'GRAPHS FOR PAPER'!B$26*'DATA COLLATED'!Q5 -> 26.6349458
A6: 5 | B6: 3 | C6: 0.2 | D6: -0.6989700043 | E6: 25.37777778 | F6: 0.8541666667 | J6: 5 | K6: 1.28 | Q6: -2.06 | R6: ='GRAPHS FOR PAPER'!B$20+'GRAPHS FOR PAPER'!B$21*'DATA COLLATED'!Q6+'GRAPHS FOR PAPER'!B$22*'DATA COLLATED'!Q6*'DATA COLLATED'!Q6 -> 1.109530044 | S6: ='GRAPHS FOR PAPER'!B$25+'GRAPHS FOR PAPER'!B$26*'DATA COLLATED'!Q6 -> 26.6289364
A7: 6 | B7: 1 | C7: 0 | D7: -2.096910013 | E7: 26.55333333 | F7: 1.116666667 | J7: 6 | K7: 3.2 | Q7: -2.05 | R7: ='GRAPHS FOR PAPER'!B$20+'GRAPHS FOR PAPER'!B$21*'DATA COLLATED'!Q7+'GRAPHS FOR PAPER'!B$22*'DATA COLLATED'!Q7*'DATA COLLATED'!Q7 -> 1.114997475 | S7: ='GRAPHS FOR PAPER'!B$25+'GRAPHS FOR PAPER'!B$26*'DATA COLLATED'!Q7 -> 26.622927
A8: 7 | B8: 2 | C8: 0.08 | D8: -1.096910013 | E8: 28.22 | F8: 1.716666667 | J8: 7 | K8: 8 | Q8: -2.04 | R8: ='GRAPHS FOR PAPER'!B$20+'GRAPHS FOR PAPER'!B$21*'DATA COLLATED'!Q8+'GRAPHS FOR PAPER'!B$22*'DATA COLLATED'!Q8*'DATA COLLATED'!Q8 -> 1.120433264 | S8: ='GRAPHS FOR PAPER'!B$25+'GRAPHS FOR PAPER'!B$26*'DATA COLLATED'!Q8 -> 26.6169176
A9: 8 | B9: 4 | C9: 0.51 | D9: -0.2924298239 | E9: 29.49666667 | F9: 2.025 | J9: 8 | K9: 20 | Q9: -2.03 | R9: ='GRAPHS FOR PAPER'!B$20+'GRAPHS FOR PAPER'!B$21*'DATA COLLATED'!Q9+'GRAPHS FOR PAPER'!B$22*'DATA COLLATED'!Q9*'DATA COLLATED'!Q9 -> 1.125837411 | S9: ='GRAPHS FOR PAPER'!B$25+'GRAPHS FOR PAPER'!B$26*'DATA COLLATED'!Q9 -> 26.6109082
A10: 9 | B10: 9 | C10: 50 | D10: 1.698970004 | E10: 24.75555556 | F10: 0.65 | J10: 9 | K10: 50 | Q10: -2.02 | R10: ='GRAPHS FOR PAPER'!B$20+'GRAPHS FOR PAPER'!B$21*'DATA COLLATED'!Q10+'GRAPHS FOR PAPER'!B$22*'DATA COLLATED'!Q10*'DATA COLLATED'!Q10 -> 1.131209916 | S10: ='GRAPHS FOR PAPER'!B$25+'GRAPHS FOR PAPER'!B$26*'DATA COLLATED'!Q10 -> 26.6048988
A11: 10 | B11: 3 | C11: 0.2 | D11: -0.6989700043 | E11: 25.41111111 | F11: 1.675 | J11: 10 | K11: 125 | Q11: -2.01 | R11: ='GRAPHS FOR PAPER'!B$20+'GRAPHS FOR PAPER'!B$21*'DATA COLLATED'!Q11+'GRAPHS FOR PAPER'!B$22*'DATA COLLATED'!Q11*'DATA COLLATED'!Q11 -> 1.136550779 | S11: ='GRAPHS FOR PAPER'!B$25+'GRAPHS FOR PAPER'!B$26*'DATA COLLATED'!Q11 -> 26.5988894
A12: 11 | B12: 3 | C12: 0.2 | D12: -0.6989700043 | E12: 23.79333333 | F12: 1.616666667 | Q12: -2 | R12: ='GRAPHS FOR PAPER'!B$20+'GRAPHS FOR PAPER'!B$21*'DATA COLLATED'!Q12+'GRAPHS FOR PAPER'!B$22*'DATA COLLATED'!Q12*'DATA COLLATED'!Q12 -> 1.14186 | S12: ='GRAPHS FOR PAPER'!B$25+'GRAPHS FOR PAPER'!B$26*'DATA COLLATED'!Q12 -> 26.59288
A13: 12 | B13: 4 | C13: 0.51 | D13: -0.2924298239 | E13: 26 | F13: 1.575 | Q13: -1.99 | R13: ='GRAPHS FOR PAPER'!B$20+'GRAPHS FOR PAPER'!B$21*'DATA COLLATED'!Q13+'GRAPHS FOR PAPER'!B$22*'DATA COLLATED'!Q13*'DATA COLLATED'!Q13 -> 1.147137579 | S13: ='GRAPHS FOR PAPER'!B$25+'GRAPHS FOR PAPER'!B$26*'DATA COLLATED'!Q13 -> 26.5868706
A14: 13 | B14: 9 | C14: 50 | D14: 1.698970004 | E14: 24.38666667 | F14: 1.466666667 | Q14: -1.98 | R14: ='GRAPHS FOR PAPER'!B$20+'GRAPHS FOR PAPER'!B$21*'DATA COLLATED'!Q14+'GRAPHS FOR PAPER'!B$22*'DATA COLLATED'!Q14*'DATA COLLATED'!Q14 -> 1.152383516 | S14: ='GRAPHS FOR PAPER'!B$25+'GRAPHS FOR PAPER'!B$26*'DATA COLLATED'!Q14 -> 26.5808612
A15: 14 | B15: 4 | C15: 0.51 | D15: -0.2924298239 | E15: 26.15333333 | F15: 0.875 | Q15: -1.97 | R15: ='GRAPHS FOR PAPER'!B$20+'GRAPHS FOR PAPER'!B$21*'DATA COLLATED'!Q15+'GRAPHS FOR PAPER'!B$22*'DATA COLLATED'!Q15*'DATA COLLATED'!Q15 -> 1.157597811 | S15: ='GRAPHS FOR PAPER'!B$25+'GRAPHS FOR PAPER'!B$26*'DATA COLLATED'!Q15 -> 26.5748518
A16: 15 | B16: 5 | C16: 1.28 | D16: 0.1072099696 | E16: 26.76111111 | F16: 2.183333333 | K16: denotes 1st experiment | Q16: -1.96 | R16: ='GRAPHS FOR PAPER'!B$20+'GRAPHS FOR PAPER'!B$21*'DATA COLLATED'!Q16+'GRAPHS FOR PAPER'!B$22*'DATA COLLATED'!Q16*'DATA COLLATED'!Q16 -> 1.162780464 | S16: ='GRAPHS FOR PAPER'!B$25+'GRAPHS FOR PAPER'!B$26*'DATA COLLATED'!Q16 -> 26.5688424
A17: 16 | B17: 2 | C17: 0.08 | D17: -1.096910013 | E17: 24.87333333 | F17: 1.55 | Q17: -1.95 | R17: ='GRAPHS FOR PAPER'!B$20+'GRAPHS FOR PAPER'!B$21*'DATA COLLATED'!Q17+'GRAPHS FOR PAPER'!B$22*'DATA COLLATED'!Q17*'DATA COLLATED'!Q17 -> 1.167931475 | S17: ='GRAPHS FOR PAPER'!B$25+'GRAPHS FOR PAPER'!B$26*'DATA COLLATED'!Q17 -> 26.562833
A18: 17 | B18: 7 | C18: 8 | D18: 0.903089987 | E18: 26.87777778 | F18: 1.366666667 | Q18: -1.94 | R18: ='GRAPHS FOR PAPER'!B$20+'GRAPHS FOR PAPER'!B$21*'DATA COLLATED'!Q18+'GRAPHS FOR PAPER'!B$22*'DATA COLLATED'!Q18*'DATA COLLATED'!Q18 -> 1.173050844 | S18: ='GRAPHS FOR PAPER'!B$25+'GRAPHS FOR PAPER'!B$26*'DATA COLLATED'!Q18 -> 26.5568236
A19: 19 | B19: 6 | C19: 3.2 | D19: 0.5051499783 | E19: 26.35555556 | F19: 0.8333333333 | Q19: -1.93 | R19: ='GRAPHS FOR PAPER'!B$20+'GRAPHS FOR PAPER'!B$21*'DATA COLLATED'!Q19+'GRAPHS FOR PAPER'!B$22*'DATA COLLATED'!Q19*'DATA COLLATED'!Q19 -> 1.178138571 | S19: ='GRAPHS FOR PAPER'!B$25+'GRAPHS FOR PAPER'!B$26*'DATA COLLATED'!Q19 -> 26.5508142
A20: 20 | B20: 2 | C20: 0.08 | D20: -1.096910013 | E20: 25.24666667 | F20: 1.533333333 | Q20: -1.92 | R20: ='GRAPHS FOR PAPER'!B$20+'GRAPHS FOR PAPER'!B$21*'DATA COLLATED'!Q20+'GRAPHS FOR PAPER'!B$22*'DATA COLLATED'!Q20*'DATA COLLATED'!Q20 -> 1.183194656 | S20: ='GRAPHS FOR PAPER'!B$25+'GRAPHS FOR PAPER'!B$26*'DATA COLLATED'!Q20 -> 26.5448048
A21: 21 | B21: 1 | C21: 0 | D21: -2.096910013 | E21: 24.83333333 | F21: 1.016666667 | Q21: -1.91 | R21: ='GRAPHS FOR PAPER'!B$20+'GRAPHS FOR PAPER'!B$21*'DATA COLLATED'!Q21+'GRAPHS FOR PAPER'!B$22*'DATA COLLATED'!Q21*'DATA COLLATED'!Q21 -> 1.188219099 | S21: ='GRAPHS FOR PAPER'!B$25+'GRAPHS FOR PAPER'!B$26*'DATA COLLATED'!Q21 -> 26.5387954
A22: 22 | B22: 10 | C22: 125 | D22: 2.096910013 | E22: 24.37333333 | F22: 0.65 | Q22: -1.9 | R22: ='GRAPHS FOR PAPER'!B$20+'GRAPHS FOR PAPER'!B$21*'DATA COLLATED'!Q22+'GRAPHS FOR PAPER'!B$22*'DATA COLLATED'!Q22*'DATA COLLATED'!Q22 -> 1.1932119 | S22: ='GRAPHS FOR PAPER'!B$25+'GRAPHS FOR PAPER'!B$26*'DATA COLLATED'!Q22 -> 26.532786
A23: 23 | B23: 7 | C23: 8 | D23: 0.903089987 | E23: 24.7 | F23: 0.8666666667 | Q23: -1.89 | R23: ='GRAPHS FOR PAPER'!B$20+'GRAPHS FOR PAPER'!B$21*'DATA COLLATED'!Q23+'GRAPHS FOR PAPER'!B$22*'DATA COLLATED'!Q23*'DATA COLLATED'!Q23 -> 1.198173059 | S23: ='GRAPHS FOR PAPER'!B$25+'GRAPHS FOR PAPER'!B$26*'DATA COLLATED'!Q23 -> 26.5267766
A24: 24 | B24: 8 | C24: 20 | D24: 1.301029996 | E24: 25.09444444 | F24: 2.083316667 | Q24: -1.88 | R24: ='GRAPHS FOR PAPER'!B$20+'GRAPHS FOR PAPER'!B$21*'DATA COLLATED'!Q24+'GRAPHS FOR PAPER'!B$22*'DATA COLLATED'!Q24*'DATA COLLATED'!Q24 -> 1.203102576 | S24: ='GRAPHS FOR PAPER'!B$25+'GRAPHS FOR PAPER'!B$26*'DATA COLLATED'!Q24 -> 26.5207672
A25: 25 | B25: 6 | C25: 3.2 | D25: 0.5051499783 | E25: 26.22380952 | F25: 2.403731165 | Q25: -1.87 | R25: ='GRAPHS FOR PAPER'!B$20+'GRAPHS FOR PAPER'!B$21*'DATA COLLATED'!Q25+'GRAPHS FOR PAPER'!B$22*'DATA COLLATED'!Q25*'DATA COLLATED'!Q25 -> 1.208000451 | S25: ='GRAPHS FOR PAPER'!B$25+'GRAPHS FOR PAPER'!B$26*'DATA COLLATED'!Q25 -> 26.5147578
A26: 26 | B26: 8 | C26: 20 | D26: 1.301029996 | E26: 24.25 | F26: 0.3166611111 | Q26: -1.86 | R26: ='GRAPHS FOR PAPER'!B$20+'GRAPHS FOR PAPER'!B$21*'DATA COLLATED'!Q26+'GRAPHS FOR PAPER'!B$22*'DATA COLLATED'!Q26*'DATA COLLATED'!Q26 -> 1.212866684 | S26: ='GRAPHS FOR PAPER'!B$25+'GRAPHS FOR PAPER'!B$26*'DATA COLLATED'!Q26 -> 26.5087484
A27: 27 | B27: 10 | C27: 125 | D27: 2.096910013 | E27: 23.73333333 | F27: 0.55 | Q27: -1.85 | R27: ='GRAPHS FOR PAPER'!B$20+'GRAPHS FOR PAPER'!B$21*'DATA COLLATED'!Q27+'GRAPHS FOR PAPER'!B$22*'DATA COLLATED'!Q27*'DATA COLLATED'!Q27 -> 1.217701275 | S27: ='GRAPHS FOR PAPER'!B$25+'GRAPHS FOR PAPER'!B$26*'DATA COLLATED'!Q27 -> 26.502739
A28: 28 | B28: 5 | C28: 1.28 | D28: 0.1072099696 | E28: 27.8 | F28: 2.225 | Q28: -1.84 | R28: ='GRAPHS FOR PAPER'!B$20+'GRAPHS FOR PAPER'!B$21*'DATA COLLATED'!Q28+'GRAPHS FOR PAPER'!B$22*'DATA COLLATED'!Q28*'DATA COLLATED'!Q28 -> 1.222504224 | S28: ='GRAPHS FOR PAPER'!B$25+'GRAPHS FOR PAPER'!B$26*'DATA COLLATED'!Q28 -> 26.4967296
A29: 29 | B29: 6 | C29: 3.2 | D29: 0.5051499783 | E29: 25.57833333 | F29: 0.65 | Q29: -1.83 | R29: ='GRAPHS FOR PAPER'!B$20+'GRAPHS FOR PAPER'!B$21*'DATA COLLATED'!Q29+'GRAPHS FOR PAPER'!B$22*'DATA COLLATED'!Q29*'DATA COLLATED'!Q29 -> 1.227275531 | S29: ='GRAPHS FOR PAPER'!B$25+'GRAPHS FOR PAPER'!B$26*'DATA COLLATED'!Q29 -> 26.4907202
A30: 1-1 | B30: 1 | C30: 0 | D30: -2.096910013 | E30: 29.02666667 | F30: 1.066666667 | Q30: -1.82 | R30: ='GRAPHS FOR PAPER'!B$20+'GRAPHS FOR PAPER'!B$21*'DATA COLLATED'!Q30+'GRAPHS FOR PAPER'!B$22*'DATA COLLATED'!Q30*'DATA COLLATED'!Q30 -> 1.232015196 | S30: ='GRAPHS FOR PAPER'!B$25+'GRAPHS FOR PAPER'!B$26*'DATA COLLATED'!Q30 -> 26.4847108
A31: 1-2 | B31: 1 | C31: 0 | D31: -2.096910013 | E31: 31.47333333 | F31: 1.016666667 | Q31: -1.81 | R31: ='GRAPHS FOR PAPER'!B$20+'GRAPHS FOR PAPER'!B$21*'DATA COLLATED'!Q31+'GRAPHS FOR PAPER'!B$22*'DATA COLLATED'!Q31*'DATA COLLATED'!Q31 -> 1.236723219 | S31: ='GRAPHS FOR PAPER'!B$25+'GRAPHS FOR PAPER'!B$26*'DATA COLLATED'!Q31 -> 26.4787014
A32: 1-4 | B32: 1 | C32: 0 | D32: -2.096910013 | E32: 29.32 | F32: 1.45 | Q32: -1.8 | R32: ='GRAPHS FOR PAPER'!B$20+'GRAPHS FOR PAPER'!B$21*'DATA COLLATED'!Q32+'GRAPHS FOR PAPER'!B$22*'DATA COLLATED'!Q32*'DATA COLLATED'!Q32 -> 1.2413996 | S32: ='GRAPHS FOR PAPER'!B$25+'GRAPHS FOR PAPER'!B$26*'DATA COLLATED'!Q32 -> 26.472692
A33: 1-5 | B33: 1 | C33: 0 | D33: -2.096910013 | F33: 0.8291666667 | Q33: -1.79 | R33: ='GRAPHS FOR PAPER'!B$20+'GRAPHS FOR PAPER'!B$21*'DATA COLLATED'!Q33+'GRAPHS FOR PAPER'!B$22*'DATA COLLATED'!Q33*'DATA COLLATED'!Q33 -> 1.246044339 | S33: ='GRAPHS FOR PAPER'!B$25+'GRAPHS FOR PAPER'!B$26*'DATA COLLATED'!Q33 -> 26.4666826
A34: 2-1 | B34: 2 | C34: 0.08 | D34: -1.096910013 | E34: 26.41111111 | F34: 1.3 | Q34: -1.78 | R34: ='GRAPHS FOR PAPER'!B$20+'GRAPHS FOR PAPER'!B$21*'DATA COLLATED'!Q34+'GRAPHS FOR PAPER'!B$22*'DATA COLLATED'!Q34*'DATA COLLATED'!Q34 -> 1.250657436 | S34: ='GRAPHS FOR PAPER'!B$25+'GRAPHS FOR PAPER'!B$26*'DATA COLLATED'!Q34 -> 26.4606732
A35: 2-2 | B35: 2 | C35: 0.08 | D35: -1.096910013 | E35: 23.45 | F35: 2.016666667 | Q35: -1.77 | R35: ='GRAPHS FOR PAPER'!B$20+'GRAPHS FOR PAPER'!B$21*'DATA COLLATED'!Q35+'GRAPHS FOR PAPER'!B$22*'DATA COLLATED'!Q35*'DATA COLLATED'!Q35 -> 1.255238891 | S35: ='GRAPHS FOR PAPER'!B$25+'GRAPHS FOR PAPER'!B$26*'DATA COLLATED'!Q35 -> 26.4546638
A36: 2-3 | B36: 2 | C36: 0.08 | D36: -1.096910013 | E36: 24.94 | F36: 0.9833333333 | Q36: -1.76 | R36: ='GRAPHS FOR PAPER'!B$20+'GRAPHS FOR PAPER'!B$21*'DATA COLLATED'!Q36+'GRAPHS FOR PAPER'!B$22*'DATA COLLATED'!Q36*'DATA COLLATED'!Q36 -> 1.259788704 | S36: ='GRAPHS FOR PAPER'!B$25+'GRAPHS FOR PAPER'!B$26*'DATA COLLATED'!Q36 -> 26.4486544
A37: 2-4 | B37: 2 | C37: 0.08 | D37: -1.096910013 | E37: 25.33888889 | F37: 2.333333333 | Q37: -1.75 | R37: ='GRAPHS FOR PAPER'!B$20+'GRAPHS FOR PAPER'!B$21*'DATA COLLATED'!Q37+'GRAPHS FOR PAPER'!B$22*'DATA COLLATED'!Q37*'DATA COLLATED'!Q37 -> 1.264306875 | S37: ='GRAPHS FOR PAPER'!B$25+'GRAPHS FOR PAPER'!B$26*'DATA COLLATED'!Q37 -> 26.442645
A38: 3-5 | B38: 3 | C38: 0.2 | D38: -0.6989700043 | E38: 24.56111111 | F38: 1.9 | Q38: -1.74 | R38: ='GRAPHS FOR PAPER'!B$20+'GRAPHS FOR PAPER'!B$21*'DATA COLLATED'!Q38+'GRAPHS FOR PAPER'!B$22*'DATA COLLATED'!Q38*'DATA COLLATED'!Q38 -> 1.268793404 | S38: ='GRAPHS FOR PAPER'!B$25+'GRAPHS FOR PAPER'!B$26*'DATA COLLATED'!Q38 -> 26.4366356
A39: 3-1 | B39: 3 | C39: 0.2 | D39: -0.6989700043 | E39: 25.89444444 | F39: 2.25 | Q39: -1.73 | R39: ='GRAPHS FOR PAPER'!B$20+'GRAPHS FOR PAPER'!B$21*'DATA COLLATED'!Q39+'GRAPHS FOR PAPER'!B$22*'DATA COLLATED'!Q39*'DATA COLLATED'!Q39 -> 1.273248291 | S39: ='GRAPHS FOR PAPER'!B$25+'GRAPHS FOR PAPER'!B$26*'DATA COLLATED'!Q39 -> 26.4306262
A40: 3-2 | B40: 3 | C40: 0.2 | D40: -0.6989700043 | E40: 25.25555556 | F40: 2.041666667 | Q40: -1.72 | R40: ='GRAPHS FOR PAPER'!B$20+'GRAPHS FOR PAPER'!B$21*'DATA COLLATED'!Q40+'GRAPHS FOR PAPER'!B$22*'DATA COLLATED'!Q40*'DATA COLLATED'!Q40 -> 1.277671536 | S40: ='GRAPHS FOR PAPER'!B$25+'GRAPHS FOR PAPER'!B$26*'DATA COLLATED'!Q40 -> 26.4246168
A41: 3-3 | B41: 3 | C41: 0.2 | D41: -0.6989700043 | E41: 23.31666667 | F41: 0.7 | Q41: -1.71 | R41: ='GRAPHS FOR PAPER'!B$20+'GRAPHS FOR PAPER'!B$21*'DATA COLLATED'!Q41+'GRAPHS FOR PAPER'!B$22*'DATA COLLATED'!Q41*'DATA COLLATED'!Q41 -> 1.282063139 | S41: ='GRAPHS FOR PAPER'!B$25+'GRAPHS FOR PAPER'!B$26*'DATA COLLATED'!Q41 -> 26.4186074
A42: 3-4 | B42: 3 | C42: 0.2 | D42: -0.6989700043 | E42: 24.6 | F42: 0.5491666667 | Q42: -1.7 | R42: ='GRAPHS FOR PAPER'!B$20+'GRAPHS FOR PAPER'!B$21*'DATA COLLATED'!Q42+'GRAPHS FOR PAPER'!B$22*'DATA COLLATED'!Q42*'DATA COLLATED'!Q42 -> 1.2864231 | S42: ='GRAPHS FOR PAPER'!B$25+'GRAPHS FOR PAPER'!B$26*'DATA COLLATED'!Q42 -> 26.412598
A43: 4-1 | B43: 4 | C43: 0.51 | D43: -0.2924298239 | E43: 26.55555556 | F43: 1.7 | Q43: -1.69 | R43: ='GRAPHS FOR PAPER'!B$20+'GRAPHS FOR PAPER'!B$21*'DATA COLLATED'!Q43+'GRAPHS FOR PAPER'!B$22*'DATA COLLATED'!Q43*'DATA COLLATED'!Q43 -> 1.290751419 | S43: ='GRAPHS FOR PAPER'!B$25+'GRAPHS FOR PAPER'!B$26*'DATA COLLATED'!Q43 -> 26.4065886
A44: 4-2 | B44: 4 | C44: 0.51 | D44: -0.2924298239 | E44: 23.96666667 | F44: 1 | Q44: -1.68 | R44: ='GRAPHS FOR PAPER'!B$20+'GRAPHS FOR PAPER'!B$21*'DATA COLLATED'!Q44+'GRAPHS FOR PAPER'!B$22*'DATA COLLATED'!Q44*'DATA COLLATED'!Q44 -> 1.295048096 | S44: ='GRAPHS FOR PAPER'!B$25+'GRAPHS FOR PAPER'!B$26*'DATA COLLATED'!Q44 -> 26.4005792
A45: 4-3 | B45: 4 | C45: 0.51 | D45: -0.2924298239 | E45: 27.275 | F45: 1.233333333 | Q45: -1.67 | R45: ='GRAPHS FOR PAPER'!B$20+'GRAPHS FOR PAPER'!B$21*'DATA COLLATED'!Q45+'GRAPHS FOR PAPER'!B$22*'DATA COLLATED'!Q45*'DATA COLLATED'!Q45 -> 1.299313131 | S45: ='GRAPHS FOR PAPER'!B$25+'GRAPHS FOR PAPER'!B$26*'DATA COLLATED'!Q45 -> 26.3945698
A46: 4-4 | B46: 4 | C46: 0.51 | D46: -0.2924298239 | E46: 24.52777778 | F46: 2.25 | Q46: -1.66 | R46: ='GRAPHS FOR PAPER'!B$20+'GRAPHS FOR PAPER'!B$21*'DATA COLLATED'!Q46+'GRAPHS FOR PAPER'!B$22*'DATA COLLATED'!Q46*'DATA COLLATED'!Q46 -> 1.303546524 | S46: ='GRAPHS FOR PAPER'!B$25+'GRAPHS FOR PAPER'!B$26*'DATA COLLATED'!Q46 -> 26.3885604
A47: 5-1 | B47: 5 | C47: 1.28 | D47: 0.1072099696 | E47: 23.16666667 | F47: 0.7166666667 | Q47: -1.65 | R47: ='GRAPHS FOR PAPER'!B$20+'GRAPHS FOR PAPER'!B$21*'DATA COLLATED'!Q47+'GRAPHS FOR PAPER'!B$22*'DATA COLLATED'!Q47*'DATA COLLATED'!Q47 -> 1.307748275 | S47: ='GRAPHS FOR PAPER'!B$25+'GRAPHS FOR PAPER'!B$26*'DATA COLLATED'!Q47 -> 26.382551
A48: 5-2 | B48: 5 | C48: 1.28 | D48: 0.1072099696 | E48: 24.46111111 | F48: 1.3 | Q48: -1.64 | R48: ='GRAPHS FOR PAPER'!B$20+'GRAPHS FOR PAPER'!B$21*'DATA COLLATED'!Q48+'GRAPHS FOR PAPER'!B$22*'DATA COLLATED'!Q48*'DATA COLLATED'!Q48 -> 1.311918384 | S48: ='GRAPHS FOR PAPER'!B$25+'GRAPHS FOR PAPER'!B$26*'DATA COLLATED'!Q48 -> 26.3765416
A49: 5-3 | B49: 5 | C49: 1.28 | D49: 0.1072099696 | E49: 25.25 | F49: 1.441666667 | Q49: -1.63 | R49: ='GRAPHS FOR PAPER'!B$20+'GRAPHS FOR PAPER'!B$21*'DATA COLLATED'!Q49+'GRAPHS FOR PAPER'!B$22*'DATA COLLATED'!Q49*'DATA COLLATED'!Q49 -> 1.316056851 | S49: ='GRAPHS FOR PAPER'!B$25+'GRAPHS FOR PAPER'!B$26*'DATA COLLATED'!Q49 -> 26.3705322
A50: 5-4 | B50: 5 | C50: 1.28 | D50: 0.1072099696 | E50: 23.49444445 | F50: 2.416666665 | Q50: -1.62 | R50: ='GRAPHS FOR PAPER'!B$20+'GRAPHS FOR PAPER'!B$21*'DATA COLLATED'!Q50+'GRAPHS FOR PAPER'!B$22*'DATA COLLATED'!Q50*'DATA COLLATED'!Q50 -> 1.320163676 | S50: ='GRAPHS FOR PAPER'!B$25+'GRAPHS FOR PAPER'!B$26*'DATA COLLATED'!Q50 -> 26.3645228
A51: 6-1 | B51: 6 | C51: 3.2 | D51: 0.5051499783 | E51: 23.67222222 | F51: 1.216666667 | Q51: -1.61 | R51: ='GRAPHS FOR PAPER'!B$20+'GRAPHS FOR PAPER'!B$21*'DATA COLLATED'!Q51+'GRAPHS FOR PAPER'!B$22*'DATA COLLATED'!Q51*'DATA COLLATED'!Q51 -> 1.324238859 | S51: ='GRAPHS FOR PAPER'!B$25+'GRAPHS FOR PAPER'!B$26*'DATA COLLATED'!Q51 -> 26.3585134
A52: 6-2 | B52: 6 | C52: 3.2 | D52: 0.5051499783 | E52: 26.04666667 | F52: 1.325 | Q52: -1.6 | R52: ='GRAPHS FOR PAPER'!B$20+'GRAPHS FOR PAPER'!B$21*'DATA COLLATED'!Q52+'GRAPHS FOR PAPER'!B$22*'DATA COLLATED'!Q52*'DATA COLLATED'!Q52 -> 1.3282824 | S52: ='GRAPHS FOR PAPER'!B$25+'GRAPHS FOR PAPER'!B$26*'DATA COLLATED'!Q52 -> 26.352504
A53: 6-3 | B53: 6 | C53: 3.2 | D53: 0.5051499783 | E53: 26.26666667 | F53: 1.766666667 | Q53: -1.59 | R53: ='GRAPHS FOR PAPER'!B$20+'GRAPHS FOR PAPER'!B$21*'DATA COLLATED'!Q53+'GRAPHS FOR PAPER'!B$22*'DATA COLLATED'!Q53*'DATA COLLATED'!Q53 -> 1.332294299 | S53: ='GRAPHS FOR PAPER'!B$25+'GRAPHS FOR PAPER'!B$26*'DATA COLLATED'!Q53 -> 26.3464946
A54: 6-4 | B54: 6 | C54: 3.2 | D54: 0.5051499783 | E54: 23.06666667 | F54: 1.733333333 | Q54: -1.58 | R54: ='GRAPHS FOR PAPER'!B$20+'GRAPHS FOR PAPER'!B$21*'DATA COLLATED'!Q54+'GRAPHS FOR PAPER'!B$22*'DATA COLLATED'!Q54*'DATA COLLATED'!Q54 -> 1.336274556 | S54: ='GRAPHS FOR PAPER'!B$25+'GRAPHS FOR PAPER'!B$26*'DATA COLLATED'!Q54 -> 26.3404852
A55: 7-1 | B55: 7 | C55: 8 | D55: 0.903089987 | E55: 24.93333333 | F55: 0.875 | Q55: -1.57 | R55: ='GRAPHS FOR PAPER'!B$20+'GRAPHS FOR PAPER'!B$21*'DATA COLLATED'!Q55+'GRAPHS FOR PAPER'!B$22*'DATA COLLATED'!Q55*'DATA COLLATED'!Q55 -> 1.340223171 | S55: ='GRAPHS FOR PAPER'!B$25+'GRAPHS FOR PAPER'!B$26*'DATA COLLATED'!Q55 -> 26.3344758
A56: 7-2 | B56: 7 | C56: 8 | D56: 0.903089987 | E56: 26.13333333 | F56: 1.183333333 | Q56: -1.56 | R56: ='GRAPHS FOR PAPER'!B$20+'GRAPHS FOR PAPER'!B$21*'DATA COLLATED'!Q56+'GRAPHS FOR PAPER'!B$22*'DATA COLLATED'!Q56*'DATA COLLATED'!Q56 -> 1.344140144 | S56: ='GRAPHS FOR PAPER'!B$25+'GRAPHS FOR PAPER'!B$26*'DATA COLLATED'!Q56 -> 26.3284664
A57: 7-3 | B57: 7 | C57: 8 | D57: 0.903089987 | E57: 24.37777778 | F57: 1 | Q57: -1.55 | R57: ='GRAPHS FOR PAPER'!B$20+'GRAPHS FOR PAPER'!B$21*'DATA COLLATED'!Q57+'GRAPHS FOR PAPER'!B$22*'DATA COLLATED'!Q57*'DATA COLLATED'!Q57 -> 1.348025475 | S57: ='GRAPHS FOR PAPER'!B$25+'GRAPHS FOR PAPER'!B$26*'DATA COLLATED'!Q57 -> 26.322457
A58: 7-4 | B58: 7 | C58: 8 | D58: 0.903089987 | E58: 23.03333333 | F58: 2.075 | Q58: -1.54 | R58: ='GRAPHS FOR PAPER'!B$20+'GRAPHS FOR PAPER'!B$21*'DATA COLLATED'!Q58+'GRAPHS FOR PAPER'!B$22*'DATA COLLATED'!Q58*'DATA COLLATED'!Q58 -> 1.351879164 | S58: ='GRAPHS FOR PAPER'!B$25+'GRAPHS FOR PAPER'!B$26*'DATA COLLATED'!Q58 -> 26.3164476
A59: 7-5 | B59: 7 | C59: 8 | D59: 0.903089987 | E59: 24.15 | F59: 1.816666667 | Q59: -1.53 | R59: ='GRAPHS FOR PAPER'!B$20+'GRAPHS FOR PAPER'!B$21*'DATA COLLATED'!Q59+'GRAPHS FOR PAPER'!B$22*'DATA COLLATED'!Q59*'DATA COLLATED'!Q59 -> 1.355701211 | S59: ='GRAPHS FOR PAPER'!B$25+'GRAPHS FOR PAPER'!B$26*'DATA COLLATED'!Q59 -> 26.3104382
A60: 8-1 | B60: 8 | C60: 20 | D60: 1.301029996 | E60: 23.23333333 | F60: 0.5166666667 | Q60: -1.52 | R60: ='GRAPHS FOR PAPER'!B$20+'GRAPHS FOR PAPER'!B$21*'DATA COLLATED'!Q60+'GRAPHS FOR PAPER'!B$22*'DATA COLLATED'!Q60*'DATA COLLATED'!Q60 -> 1.359491616 | S60: ='GRAPHS FOR PAPER'!B$25+'GRAPHS FOR PAPER'!B$26*'DATA COLLATED'!Q60 -> 26.3044288
A61: 8-2 | B61: 8 | C61: 20 | D61: 1.301029996 | E61: 28.16111111 | F61: 1.511111111 | Q61: -1.51 | R61: ='GRAPHS FOR PAPER'!B$20+'GRAPHS FOR PAPER'!B$21*'DATA COLLATED'!Q61+'GRAPHS FOR PAPER'!B$22*'DATA COLLATED'!Q61*'DATA COLLATED'!Q61 -> 1.363250379 | S61: ='GRAPHS FOR PAPER'!B$25+'GRAPHS FOR PAPER'!B$26*'DATA COLLATED'!Q61 -> 26.2984194
A62: 8-3 | B62: 8 | C62: 20 | D62: 1.301029996 | E62: 24.14666667 | F62: 0.4166666667 | Q62: -1.5 | R62: ='GRAPHS FOR PAPER'!B$20+'GRAPHS FOR PAPER'!B$21*'DATA COLLATED'!Q62+'GRAPHS FOR PAPER'!B$22*'DATA COLLATED'!Q62*'DATA COLLATED'!Q62 -> 1.3669775 | S62: ='GRAPHS FOR PAPER'!B$25+'GRAPHS FOR PAPER'!B$26*'DATA COLLATED'!Q62 -> 26.29241
A63: 8-4 | B63: 8 | C63: 20 | D63: 1.301029996 | E63: 23.3 | F63: 1.733333333 | Q63: -1.49 | R63: ='GRAPHS FOR PAPER'!B$20+'GRAPHS FOR PAPER'!B$21*'DATA COLLATED'!Q63+'GRAPHS FOR PAPER'!B$22*'DATA COLLATED'!Q63*'DATA COLLATED'!Q63 -> 1.370672979 | S63: ='GRAPHS FOR PAPER'!B$25+'GRAPHS FOR PAPER'!B$26*'DATA COLLATED'!Q63 -> 26.2864006
A64: 8-5 | B64: 8 | C64: 20 | D64: 1.301029996 | E64: 24.16111111 | F64: 1.716666667 | Q64: -1.48 | R64: ='GRAPHS FOR PAPER'!B$20+'GRAPHS FOR PAPER'!B$21*'DATA COLLATED'!Q64+'GRAPHS FOR PAPER'!B$22*'DATA COLLATED'!Q64*'DATA COLLATED'!Q64 -> 1.374336816 | S64: ='GRAPHS FOR PAPER'!B$25+'GRAPHS FOR PAPER'!B$26*'DATA COLLATED'!Q64 -> 26.2803912
A65: 9-1 | B65: 9 | C65: 50 | D65: 1.698970004 | F65: 0.525 | Q65: -1.47 | R65: ='GRAPHS FOR PAPER'!B$20+'GRAPHS FOR PAPER'!B$21*'DATA COLLATED'!Q65+'GRAPHS FOR PAPER'!B$22*'DATA COLLATED'!Q65*'DATA COLLATED'!Q65 -> 1.377969011 | S65: ='GRAPHS FOR PAPER'!B$25+'GRAPHS FOR PAPER'!B$26*'DATA COLLATED'!Q65 -> 26.2743818
A66: 9-2 | B66: 9 | C66: 50 | D66: 1.698970004 | E66: 25.78888889 | F66: 1.66666667 | Q66: -1.46 | R66: ='GRAPHS FOR PAPER'!B$20+'GRAPHS FOR PAPER'!B$21*'DATA COLLATED'!Q66+'GRAPHS FOR PAPER'!B$22*'DATA COLLATED'!Q66*'DATA COLLATED'!Q66 -> 1.381569564 | S66: ='GRAPHS FOR PAPER'!B$25+'GRAPHS FOR PAPER'!B$26*'DATA COLLATED'!Q66 -> 26.2683724
A67: 9-3 | B67: 9 | C67: 50 | D67: 1.698970004 | E67: 23.63888889 | F67: 0.9 | Q67: -1.45 | R67: ='GRAPHS FOR PAPER'!B$20+'GRAPHS FOR PAPER'!B$21*'DATA COLLATED'!Q67+'GRAPHS FOR PAPER'!B$22*'DATA COLLATED'!Q67*'DATA COLLATED'!Q67 -> 1.385138475 | S67: ='GRAPHS FOR PAPER'!B$25+'GRAPHS FOR PAPER'!B$26*'DATA COLLATED'!Q67 -> 26.262363
A68: 9-4 | B68: 9 | C68: 50 | D68: 1.698970004 | E68: 23.30833333 | F68: 0.4 | Q68: -1.44 | R68: ='GRAPHS FOR PAPER'!B$20+'GRAPHS FOR PAPER'!B$21*'DATA COLLATED'!Q68+'GRAPHS FOR PAPER'!B$22*'DATA COLLATED'!Q68*'DATA COLLATED'!Q68 -> 1.388675744 | S68: ='GRAPHS FOR PAPER'!B$25+'GRAPHS FOR PAPER'!B$26*'DATA COLLATED'!Q68 -> 26.2563536
A69: 9-5 | B69: 9 | C69: 50 | D69: 1.698970004 | E69: 24.33333333 | F69: 1.041666667 | Q69: -1.43 | R69: ='GRAPHS FOR PAPER'!B$20+'GRAPHS FOR PAPER'!B$21*'DATA COLLATED'!Q69+'GRAPHS FOR PAPER'!B$22*'DATA COLLATED'!Q69*'DATA COLLATED'!Q69 -> 1.392181371 | S69: ='GRAPHS FOR PAPER'!B$25+'GRAPHS FOR PAPER'!B$26*'DATA COLLATED'!Q69 -> 26.2503442
A70: 10-1 | B70: 10 | C70: 125 | D70: 2.096910013 | E70: 24.05333333 | F70: 0.575 | Q70: -1.42 | R70: ='GRAPHS FOR PAPER'!B$20+'GRAPHS FOR PAPER'!B$21*'DATA COLLATED'!Q70+'GRAPHS FOR PAPER'!B$22*'DATA COLLATED'!Q70*'DATA COLLATED'!Q70 -> 1.395655356 | S70: ='GRAPHS FOR PAPER'!B$25+'GRAPHS FOR PAPER'!B$26*'DATA COLLATED'!Q70 -> 26.2443348
A71: 10-2 | B71: 10 | C71: 125 | D71: 2.096910013 | E71: 24.14666667 | F71: 1.183 | Q71: -1.41 | R71: ='GRAPHS FOR PAPER'!B$20+'GRAPHS FOR PAPER'!B$21*'DATA COLLATED'!Q71+'GRAPHS FOR PAPER'!B$22*'DATA COLLATED'!Q71*'DATA COLLATED'!Q71 -> 1.399097699 | S71: ='GRAPHS FOR PAPER'!B$25+'GRAPHS FOR PAPER'!B$26*'DATA COLLATED'!Q71 -> 26.2383254
A72: 10-3 | B72: 10 | C72: 125 | D72: 2.096910013 | E72: 25.16666667 | F72: 0.4666666667 | Q72: -1.4 | R72: ='GRAPHS FOR PAPER'!B$20+'GRAPHS FOR PAPER'!B$21*'DATA COLLATED'!Q72+'GRAPHS FOR PAPER'!B$22*'DATA COLLATED'!Q72*'DATA COLLATED'!Q72 -> 1.4025084 | S72: ='GRAPHS FOR PAPER'!B$25+'GRAPHS FOR PAPER'!B$26*'DATA COLLATED'!Q72 -> 26.232316
A73: 10-4 | B73: 10 | C73: 125 | D73: 2.096910013 | E73: 23.50833333 | F73: 0.4458291662 | Q73: -1.39 | R73: ='GRAPHS FOR PAPER'!B$20+'GRAPHS FOR PAPER'!B$21*'DATA COLLATED'!Q73+'GRAPHS FOR PAPER'!B$22*'DATA COLLATED'!Q73*'DATA COLLATED'!Q73 -> 1.405887459 | S73: ='GRAPHS FOR PAPER'!B$25+'GRAPHS FOR PAPER'!B$26*'DATA COLLATED'!Q73 -> 26.2263066
Q74: -1.38 | R74: ='GRAPHS FOR PAPER'!B$20+'GRAPHS FOR PAPER'!B$21*'DATA COLLATED'!Q74+'GRAPHS FOR PAPER'!B$22*'DATA COLLATED'!Q74*'DATA COLLATED'!Q74 -> 1.409234876 | S74: ='GRAPHS FOR PAPER'!B$25+'GRAPHS FOR PAPER'!B$26*'DATA COLLATED'!Q74 -> 26.2202972
Q75: -1.37 | R75: ='GRAPHS FOR PAPER'!B$20+'GRAPHS FOR PAPER'!B$21*'DATA COLLATED'!Q75+'GRAPHS FOR PAPER'!B$22*'DATA COLLATED'!Q75*'DATA COLLATED'!Q75 -> 1.412550651 | S75: ='GRAPHS FOR PAPER'!B$25+'GRAPHS FOR PAPER'!B$26*'DATA COLLATED'!Q75 -> 26.2142878
Q76: -1.36 | R76: ='GRAPHS FOR PAPER'!B$20+'GRAPHS FOR PAPER'!B$21*'DATA COLLATED'!Q76+'GRAPHS FOR PAPER'!B$22*'DATA COLLATED'!Q76*'DATA COLLATED'!Q76 -> 1.415834784 | S76: ='GRAPHS FOR PAPER'!B$25+'GRAPHS FOR PAPER'!B$26*'DATA COLLATED'!Q76 -> 26.2082784
Q77: -1.35 | R77: ='GRAPHS FOR PAPER'!B$20+'GRAPHS FOR PAPER'!B$21*'DATA COLLATED'!Q77+'GRAPHS FOR PAPER'!B$22*'DATA COLLATED'!Q77*'DATA COLLATED'!Q77 -> 1.419087275 | S77: ='GRAPHS FOR PAPER'!B$25+'GRAPHS FOR PAPER'!B$26*'DATA COLLATED'!Q77 -> 26.202269
Q78: -1.34 | R78: ='GRAPHS FOR PAPER'!B$20+'GRAPHS FOR PAPER'!B$21*'DATA COLLATED'!Q78+'GRAPHS FOR PAPER'!B$22*'DATA COLLATED'!Q78*'DATA COLLATED'!Q78 -> 1.422308124 | S78: ='GRAPHS FOR PAPER'!B$25+'GRAPHS FOR PAPER'!B$26*'DATA COLLATED'!Q78 -> 26.1962596
Q79: -1.33 | R79: ='GRAPHS FOR PAPER'!B$20+'GRAPHS FOR PAPER'!B$21*'DATA COLLATED'!Q79+'GRAPHS FOR PAPER'!B$22*'DATA COLLATED'!Q79*'DATA COLLATED'!Q79 -> 1.425497331 | S79: ='GRAPHS FOR PAPER'!B$25+'GRAPHS FOR PAPER'!B$26*'DATA COLLATED'!Q79 -> 26.1902502
Q80: -1.32 | R80: ='GRAPHS FOR PAPER'!B$20+'GRAPHS FOR PAPER'!B$21*'DATA COLLATED'!Q80+'GRAPHS FOR PAPER'!B$22*'DATA COLLATED'!Q80*'DATA COLLATED'!Q80 -> 1.428654896 | S80: ='GRAPHS FOR PAPER'!B$25+'GRAPHS FOR PAPER'!B$26*'DATA COLLATED'!Q80 -> 26.1842408
Q81: -1.31 | R81: ='GRAPHS FOR PAPER'!B$20+'GRAPHS FOR PAPER'!B$21*'DATA COLLATED'!Q81+'GRAPHS FOR PAPER'!B$22*'DATA COLLATED'!Q81*'DATA COLLATED'!Q81 -> 1.431780819 | S81: ='GRAPHS FOR PAPER'!B$25+'GRAPHS FOR PAPER'!B$26*'DATA COLLATED'!Q81 -> 26.1782314
Q82: -1.3 | R82: ='GRAPHS FOR PAPER'!B$20+'GRAPHS FOR PAPER'!B$21*'DATA COLLATED'!Q82+'GRAPHS FOR PAPER'!B$22*'DATA COLLATED'!Q82*'DATA COLLATED'!Q82 -> 1.4348751 | S82: ='GRAPHS FOR PAPER'!B$25+'GRAPHS FOR PAPER'!B$26*'DATA COLLATED'!Q82 -> 26.172222
Q83: -1.29 | R83: ='GRAPHS FOR PAPER'!B$20+'GRAPHS FOR PAPER'!B$21*'DATA COLLATED'!Q83+'GRAPHS FOR PAPER'!B$22*'DATA COLLATED'!Q83*'DATA COLLATED'!Q83 -> 1.437937739 | S83: ='GRAPHS FOR PAPER'!B$25+'GRAPHS FOR PAPER'!B$26*'DATA COLLATED'!Q83 -> 26.1662126
Q84: -1.28 | R84: ='GRAPHS FOR PAPER'!B$20+'GRAPHS FOR PAPER'!B$21*'DATA COLLATED'!Q84+'GRAPHS FOR PAPER'!B$22*'DATA COLLATED'!Q84*'DATA COLLATED'!Q84 -> 1.440968736 | S84: ='GRAPHS FOR PAPER'!B$25+'GRAPHS FOR PAPER'!B$26*'DATA COLLATED'!Q84 -> 26.1602032
Q85: -1.27 | R85: ='GRAPHS FOR PAPER'!B$20+'GRAPHS FOR PAPER'!B$21*'DATA COLLATED'!Q85+'GRAPHS FOR PAPER'!B$22*'DATA COLLATED'!Q85*'DATA COLLATED'!Q85 -> 1.443968091 | S85: ='GRAPHS FOR PAPER'!B$25+'GRAPHS FOR PAPER'!B$26*'DATA COLLATED'!Q85 -> 26.1541938
Q86: -1.26 | R86: ='GRAPHS FOR PAPER'!B$20+'GRAPHS FOR PAPER'!B$21*'DATA COLLATED'!Q86+'GRAPHS FOR PAPER'!B$22*'DATA COLLATED'!Q86*'DATA COLLATED'!Q86 -> 1.446935804 | S86: ='GRAPHS FOR PAPER'!B$25+'GRAPHS FOR PAPER'!B$26*'DATA COLLATED'!Q86 -> 26.1481844
Q87: -1.25 | R87: ='GRAPHS FOR PAPER'!B$20+'GRAPHS FOR PAPER'!B$21*'DATA COLLATED'!Q87+'GRAPHS FOR PAPER'!B$22*'DATA COLLATED'!Q87*'DATA COLLATED'!Q87 -> 1.449871875 | S87: ='GRAPHS FOR PAPER'!B$25+'GRAPHS FOR PAPER'!B$26*'DATA COLLATED'!Q87 -> 26.142175
Q88: -1.24 | R88: ='GRAPHS FOR PAPER'!B$20+'GRAPHS FOR PAPER'!B$21*'DATA COLLATED'!Q88+'GRAPHS FOR PAPER'!B$22*'DATA COLLATED'!Q88*'DATA COLLATED'!Q88 -> 1.452776304 | S88: ='GRAPHS FOR PAPER'!B$25+'GRAPHS FOR PAPER'!B$26*'DATA COLLATED'!Q88 -> 26.1361656
Q89: -1.23 | R89: ='GRAPHS FOR PAPER'!B$20+'GRAPHS FOR PAPER'!B$21*'DATA COLLATED'!Q89+'GRAPHS FOR PAPER'!B$22*'DATA COLLATED'!Q89*'DATA COLLATED'!Q89 -> 1.455649091 | S89: ='GRAPHS FOR PAPER'!B$25+'GRAPHS FOR PAPER'!B$26*'DATA COLLATED'!Q89 -> 26.1301562
Q90: -1.22 | R90: ='GRAPHS FOR PAPER'!B$20+'GRAPHS FOR PAPER'!B$21*'DATA COLLATED'!Q90+'GRAPHS FOR PAPER'!B$22*'DATA COLLATED'!Q90*'DATA COLLATED'!Q90 -> 1.458490236 | S90: ='GRAPHS FOR PAPER'!B$25+'GRAPHS FOR PAPER'!B$26*'DATA COLLATED'!Q90 -> 26.1241468
Q91: -1.21 | R91: ='GRAPHS FOR PAPER'!B$20+'GRAPHS FOR PAPER'!B$21*'DATA COLLATED'!Q91+'GRAPHS FOR PAPER'!B$22*'DATA COLLATED'!Q91*'DATA COLLATED'!Q91 -> 1.461299739 | S91: ='GRAPHS FOR PAPER'!B$25+'GRAPHS FOR PAPER'!B$26*'DATA COLLATED'!Q91 -> 26.1181374
Q92: -1.2 | R92: ='GRAPHS FOR PAPER'!B$20+'GRAPHS FOR PAPER'!B$21*'DATA COLLATED'!Q92+'GRAPHS FOR PAPER'!B$22*'DATA COLLATED'!Q92*'DATA COLLATED'!Q92 -> 1.4640776 | S92: ='GRAPHS FOR PAPER'!B$25+'GRAPHS FOR PAPER'!B$26*'DATA COLLATED'!Q92 -> 26.112128
Q93: -1.19 | R93: ='GRAPHS FOR PAPER'!B$20+'GRAPHS FOR PAPER'!B$21*'DATA COLLATED'!Q93+'GRAPHS FOR PAPER'!B$22*'DATA COLLATED'!Q93*'DATA COLLATED'!Q93 -> 1.466823819 | S93: ='GRAPHS FOR PAPER'!B$25+'GRAPHS FOR PAPER'!B$26*'DATA COLLATED'!Q93 -> 26.1061186
Q94: -1.18 | R94: ='GRAPHS FOR PAPER'!B$20+'GRAPHS FOR PAPER'!B$21*'DATA COLLATED'!Q94+'GRAPHS FOR PAPER'!B$22*'DATA COLLATED'!Q94*'DATA COLLATED'!Q94 -> 1.469538396 | S94: ='GRAPHS FOR PAPER'!B$25+'GRAPHS FOR PAPER'!B$26*'DATA COLLATED'!Q94 -> 26.1001092
Q95: -1.17 | R95: ='GRAPHS FOR PAPER'!B$20+'GRAPHS FOR PAPER'!B$21*'DATA COLLATED'!Q95+'GRAPHS FOR PAPER'!B$22*'DATA COLLATED'!Q95*'DATA COLLATED'!Q95 -> 1.472221331 | S95: ='GRAPHS FOR PAPER'!B$25+'GRAPHS FOR PAPER'!B$26*'DATA COLLATED'!Q95 -> 26.0940998
Q96: -1.16 | R96: ='GRAPHS FOR PAPER'!B$20+'GRAPHS FOR PAPER'!B$21*'DATA COLLATED'!Q96+'GRAPHS FOR PAPER'!B$22*'DATA COLLATED'!Q96*'DATA COLLATED'!Q96 -> 1.474872624 | S96: ='GRAPHS FOR PAPER'!B$25+'GRAPHS FOR PAPER'!B$26*'DATA COLLATED'!Q96 -> 26.0880904
Q97: -1.15 | R97: ='GRAPHS FOR PAPER'!B$20+'GRAPHS FOR PAPER'!B$21*'DATA COLLATED'!Q97+'GRAPHS FOR PAPER'!B$22*'DATA COLLATED'!Q97*'DATA COLLATED'!Q97 -> 1.477492275 | S97: ='GRAPHS FOR PAPER'!B$25+'GRAPHS FOR PAPER'!B$26*'DATA COLLATED'!Q97 -> 26.082081
Q98: -1.14 | R98: ='GRAPHS FOR PAPER'!B$20+'GRAPHS FOR PAPER'!B$21*'DATA COLLATED'!Q98+'GRAPHS FOR PAPER'!B$22*'DATA COLLATED'!Q98*'DATA COLLATED'!Q98 -> 1.480080284 | S98: ='GRAPHS FOR PAPER'!B$25+'GRAPHS FOR PAPER'!B$26*'DATA COLLATED'!Q98 -> 26.0760716
Q99: -1.13 | R99: ='GRAPHS FOR PAPER'!B$20+'GRAPHS FOR PAPER'!B$21*'DATA COLLATED'!Q99+'GRAPHS FOR PAPER'!B$22*'DATA COLLATED'!Q99*'DATA COLLATED'!Q99 -> 1.482636651 | S99: ='GRAPHS FOR PAPER'!B$25+'GRAPHS FOR PAPER'!B$26*'DATA COLLATED'!Q99 -> 26.0700622
Q100: -1.12 | R100: ='GRAPHS FOR PAPER'!B$20+'GRAPHS FOR PAPER'!B$21*'DATA COLLATED'!Q100+'GRAPHS FOR PAPER'!B$22*'DATA COLLATED'!Q100*'DATA COLLATED'!Q100 -> 1.485161376 | S100: ='GRAPHS FOR PAPER'!B$25+'GRAPHS FOR PAPER'!B$26*'DATA COLLATED'!Q100 -> 26.0640528
Q101: -1.11 | R101: ='GRAPHS FOR PAPER'!B$20+'GRAPHS FOR PAPER'!B$21*'DATA COLLATED'!Q101+'GRAPHS FOR PAPER'!B$22*'DATA COLLATED'!Q101*'DATA COLLATED'!Q101 -> 1.487654459 | S101: ='GRAPHS FOR PAPER'!B$25+'GRAPHS FOR PAPER'!B$26*'DATA COLLATED'!Q101 -> 26.0580434
Q102: -1.1 | R102: ='GRAPHS FOR PAPER'!B$20+'GRAPHS FOR PAPER'!B$21*'DATA COLLATED'!Q102+'GRAPHS FOR PAPER'!B$22*'DATA COLLATED'!Q102*'DATA COLLATED'!Q102 -> 1.4901159 | S102: ='GRAPHS FOR PAPER'!B$25+'GRAPHS FOR PAPER'!B$26*'DATA COLLATED'!Q102 -> 26.052034
Q103: -1.09 | R103: ='GRAPHS FOR PAPER'!B$20+'GRAPHS FOR PAPER'!B$21*'DATA COLLATED'!Q103+'GRAPHS FOR PAPER'!B$22*'DATA COLLATED'!Q103*'DATA COLLATED'!Q103 -> 1.492545699 | S103: ='GRAPHS FOR PAPER'!B$25+'GRAPHS FOR PAPER'!B$26*'DATA COLLATED'!Q103 -> 26.0460246
Q104: -1.08 | R104: ='GRAPHS FOR PAPER'!B$20+'GRAPHS FOR PAPER'!B$21*'DATA COLLATED'!Q104+'GRAPHS FOR PAPER'!B$22*'DATA COLLATED'!Q104*'DATA COLLATED'!Q104 -> 1.494943856 | S104: ='GRAPHS FOR PAPER'!B$25+'GRAPHS FOR PAPER'!B$26*'DATA COLLATED'!Q104 -> 26.0400152
Q105: -1.07 | R105: ='GRAPHS FOR PAPER'!B$20+'GRAPHS FOR PAPER'!B$21*'DATA COLLATED'!Q105+'GRAPHS FOR PAPER'!B$22*'DATA COLLATED'!Q105*'DATA COLLATED'!Q105 -> 1.497310371 | S105: ='GRAPHS FOR PAPER'!B$25+'GRAPHS FOR PAPER'!B$26*'DATA COLLATED'!Q105 -> 26.0340058
Q106: -1.06 | R106: ='GRAPHS FOR PAPER'!B$20+'GRAPHS FOR PAPER'!B$21*'DATA COLLATED'!Q106+'GRAPHS FOR PAPER'!B$22*'DATA COLLATED'!Q106*'DATA COLLATED'!Q106 -> 1.499645244 | S106: ='GRAPHS FOR PAPER'!B$25+'GRAPHS FOR PAPER'!B$26*'DATA COLLATED'!Q106 -> 26.0279964
Q107: -1.05 | R107: ='GRAPHS FOR PAPER'!B$20+'GRAPHS FOR PAPER'!B$21*'DATA COLLATED'!Q107+'GRAPHS FOR PAPER'!B$22*'DATA COLLATED'!Q107*'DATA COLLATED'!Q107 -> 1.501948475 | S107: ='GRAPHS FOR PAPER'!B$25+'GRAPHS FOR PAPER'!B$26*'DATA COLLATED'!Q107 -> 26.021987
Q108: -1.04 | R108: ='GRAPHS FOR PAPER'!B$20+'GRAPHS FOR PAPER'!B$21*'DATA COLLATED'!Q108+'GRAPHS FOR PAPER'!B$22*'DATA COLLATED'!Q108*'DATA COLLATED'!Q108 -> 1.504220064 | S108: ='GRAPHS FOR PAPER'!B$25+'GRAPHS FOR PAPER'!B$26*'DATA COLLATED'!Q108 -> 26.0159776
Q109: -1.03 | R109: ='GRAPHS FOR PAPER'!B$20+'GRAPHS FOR PAPER'!B$21*'DATA COLLATED'!Q109+'GRAPHS FOR PAPER'!B$22*'DATA COLLATED'!Q109*'DATA COLLATED'!Q109 -> 1.506460011 | S109: ='GRAPHS FOR PAPER'!B$25+'GRAPHS FOR PAPER'!B$26*'DATA COLLATED'!Q109 -> 26.0099682
Q110: -1.02 | R110: ='GRAPHS FOR PAPER'!B$20+'GRAPHS FOR PAPER'!B$21*'DATA COLLATED'!Q110+'GRAPHS FOR PAPER'!B$22*'DATA COLLATED'!Q110*'DATA COLLATED'!Q110 -> 1.508668316 | S110: ='GRAPHS FOR PAPER'!B$25+'GRAPHS FOR PAPER'!B$26*'DATA COLLATED'!Q110 -> 26.0039588
Q111: -1.01 | R111: ='GRAPHS FOR PAPER'!B$20+'GRAPHS FOR PAPER'!B$21*'DATA COLLATED'!Q111+'GRAPHS FOR PAPER'!B$22*'DATA COLLATED'!Q111*'DATA COLLATED'!Q111 -> 1.510844979 | S111: ='GRAPHS FOR PAPER'!B$25+'GRAPHS FOR PAPER'!B$26*'DATA COLLATED'!Q111 -> 25.9979494
Q112: -1 | R112: ='GRAPHS FOR PAPER'!B$20+'GRAPHS FOR PAPER'!B$21*'DATA COLLATED'!Q112+'GRAPHS FOR PAPER'!B$22*'DATA COLLATED'!Q112*'DATA COLLATED'!Q112 -> 1.51299 | S112: ='GRAPHS FOR PAPER'!B$25+'GRAPHS FOR PAPER'!B$26*'DATA COLLATED'!Q112 -> 25.99194
Q113: -0.99 | R113: ='GRAPHS FOR PAPER'!B$20+'GRAPHS FOR PAPER'!B$21*'DATA COLLATED'!Q113+'GRAPHS FOR PAPER'!B$22*'DATA COLLATED'!Q113*'DATA COLLATED'!Q113 -> 1.515103379 | S113: ='GRAPHS FOR PAPER'!B$25+'GRAPHS FOR PAPER'!B$26*'DATA COLLATED'!Q113 -> 25.9859306
Q114: -0.98 | R114: ='GRAPHS FOR PAPER'!B$20+'GRAPHS FOR PAPER'!B$21*'DATA COLLATED'!Q114+'GRAPHS FOR PAPER'!B$22*'DATA COLLATED'!Q114*'DATA COLLATED'!Q114 -> 1.517185116 | S114: ='GRAPHS FOR PAPER'!B$25+'GRAPHS FOR PAPER'!B$26*'DATA COLLATED'!Q114 -> 25.9799212
Q115: -0.97 | R115: ='GRAPHS FOR PAPER'!B$20+'GRAPHS FOR PAPER'!B$21*'DATA COLLATED'!Q115+'GRAPHS FOR PAPER'!B$22*'DATA COLLATED'!Q115*'DATA COLLATED'!Q115 -> 1.519235211 | S115: ='GRAPHS FOR PAPER'!B$25+'GRAPHS FOR PAPER'!B$26*'DATA COLLATED'!Q115 -> 25.9739118
Q116: -0.96 | R116: ='GRAPHS FOR PAPER'!B$20+'GRAPHS FOR PAPER'!B$21*'DATA COLLATED'!Q116+'GRAPHS FOR PAPER'!B$22*'DATA COLLATED'!Q116*'DATA COLLATED'!Q116 -> 1.521253664 | S116: ='GRAPHS FOR PAPER'!B$25+'GRAPHS FOR PAPER'!B$26*'DATA COLLATED'!Q116 -> 25.9679024
Q117: -0.95 | R117: ='GRAPHS FOR PAPER'!B$20+'GRAPHS FOR PAPER'!B$21*'DATA COLLATED'!Q117+'GRAPHS FOR PAPER'!B$22*'DATA COLLATED'!Q117*'DATA COLLATED'!Q117 -> 1.523240475 | S117: ='GRAPHS FOR PAPER'!B$25+'GRAPHS FOR PAPER'!B$26*'DATA COLLATED'!Q117 -> 25.961893
Q118: -0.94 | R118: ='GRAPHS FOR PAPER'!B$20+'GRAPHS FOR PAPER'!B$21*'DATA COLLATED'!Q118+'GRAPHS FOR PAPER'!B$22*'DATA COLLATED'!Q118*'DATA COLLATED'!Q118 -> 1.525195644 | S118: ='GRAPHS FOR PAPER'!B$25+'GRAPHS FOR PAPER'!B$26*'DATA COLLATED'!Q118 -> 25.9558836
Q119: -0.93 | R119: ='GRAPHS FOR PAPER'!B$20+'GRAPHS FOR PAPER'!B$21*'DATA COLLATED'!Q119+'GRAPHS FOR PAPER'!B$22*'DATA COLLATED'!Q119*'DATA COLLATED'!Q119 -> 1.527119171 | S119: ='GRAPHS FOR PAPER'!B$25+'GRAPHS FOR PAPER'!B$26*'DATA COLLATED'!Q119 -> 25.9498742
Q120: -0.92 | R120: ='GRAPHS FOR PAPER'!B$20+'GRAPHS FOR PAPER'!B$21*'DATA COLLATED'!Q120+'GRAPHS FOR PAPER'!B$22*'DATA COLLATED'!Q120*'DATA COLLATED'!Q120 -> 1.529011056 | S120: ='GRAPHS FOR PAPER'!B$25+'GRAPHS FOR PAPER'!B$26*'DATA COLLATED'!Q120 -> 25.9438648
Q121: -0.91 | R121: ='GRAPHS FOR PAPER'!B$20+'GRAPHS FOR PAPER'!B$21*'DATA COLLATED'!Q121+'GRAPHS FOR PAPER'!B$22*'DATA COLLATED'!Q121*'DATA COLLATED'!Q121 -> 1.530871299 | S121: ='GRAPHS FOR PAPER'!B$25+'GRAPHS FOR PAPER'!B$26*'DATA COLLATED'!Q121 -> 25.9378554
Q122: -0.9 | R122: ='GRAPHS FOR PAPER'!B$20+'GRAPHS FOR PAPER'!B$21*'DATA COLLATED'!Q122+'GRAPHS FOR PAPER'!B$22*'DATA COLLATED'!Q122*'DATA COLLATED'!Q122 -> 1.5326999 | S122: ='GRAPHS FOR PAPER'!B$25+'GRAPHS FOR PAPER'!B$26*'DATA COLLATED'!Q122 -> 25.931846
Q123: -0.89 | R123: ='GRAPHS FOR PAPER'!B$20+'GRAPHS FOR PAPER'!B$21*'DATA COLLATED'!Q123+'GRAPHS FOR PAPER'!B$22*'DATA COLLATED'!Q123*'DATA COLLATED'!Q123 -> 1.534496859 | S123: ='GRAPHS FOR PAPER'!B$25+'GRAPHS FOR PAPER'!B$26*'DATA COLLATED'!Q123 -> 25.9258366
Q124: -0.88 | R124: ='GRAPHS FOR PAPER'!B$20+'GRAPHS FOR PAPER'!B$21*'DATA COLLATED'!Q124+'GRAPHS FOR PAPER'!B$22*'DATA COLLATED'!Q124*'DATA COLLATED'!Q124 -> 1.536262176 | S124: ='GRAPHS FOR PAPER'!B$25+'GRAPHS FOR PAPER'!B$26*'DATA COLLATED'!Q124 -> 25.9198272
Q125: -0.87 | R125: ='GRAPHS FOR PAPER'!B$20+'GRAPHS FOR PAPER'!B$21*'DATA COLLATED'!Q125+'GRAPHS FOR PAPER'!B$22*'DATA COLLATED'!Q125*'DATA COLLATED'!Q125 -> 1.537995851 | S125: ='GRAPHS FOR PAPER'!B$25+'GRAPHS FOR PAPER'!B$26*'DATA COLLATED'!Q125 -> 25.9138178
Q126: -0.86 | R126: ='GRAPHS FOR PAPER'!B$20+'GRAPHS FOR PAPER'!B$21*'DATA COLLATED'!Q126+'GRAPHS FOR PAPER'!B$22*'DATA COLLATED'!Q126*'DATA COLLATED'!Q126 -> 1.539697884 | S126: ='GRAPHS FOR PAPER'!B$25+'GRAPHS FOR PAPER'!B$26*'DATA COLLATED'!Q126 -> 25.9078084
Q127: -0.85 | R127: ='GRAPHS FOR PAPER'!B$20+'GRAPHS FOR PAPER'!B$21*'DATA COLLATED'!Q127+'GRAPHS FOR PAPER'!B$22*'DATA COLLATED'!Q127*'DATA COLLATED'!Q127 -> 1.541368275 | S127: ='GRAPHS FOR PAPER'!B$25+'GRAPHS FOR PAPER'!B$26*'DATA COLLATED'!Q127 -> 25.901799
Q128: -0.84 | R128: ='GRAPHS FOR PAPER'!B$20+'GRAPHS FOR PAPER'!B$21*'DATA COLLATED'!Q128+'GRAPHS FOR PAPER'!B$22*'DATA COLLATED'!Q128*'DATA COLLATED'!Q128 -> 1.543007024 | S128: ='GRAPHS FOR PAPER'!B$25+'GRAPHS FOR PAPER'!B$26*'DATA COLLATED'!Q128 -> 25.8957896
Q129: -0.83 | R129: ='GRAPHS FOR PAPER'!B$20+'GRAPHS FOR PAPER'!B$21*'DATA COLLATED'!Q129+'GRAPHS FOR PAPER'!B$22*'DATA COLLATED'!Q129*'DATA COLLATED'!Q129 -> 1.544614131 | S129: ='GRAPHS FOR PAPER'!B$25+'GRAPHS FOR PAPER'!B$26*'DATA COLLATED'!Q129 -> 25.8897802
Q130: -0.82 | R130: ='GRAPHS FOR PAPER'!B$20+'GRAPHS FOR PAPER'!B$21*'DATA COLLATED'!Q130+'GRAPHS FOR PAPER'!B$22*'DATA COLLATED'!Q130*'DATA COLLATED'!Q130 -> 1.546189596 | S130: ='GRAPHS FOR PAPER'!B$25+'GRAPHS FOR PAPER'!B$26*'DATA COLLATED'!Q130 -> 25.8837708
Q131: -0.81 | R131: ='GRAPHS FOR PAPER'!B$20+'GRAPHS FOR PAPER'!B$21*'DATA COLLATED'!Q131+'GRAPHS FOR PAPER'!B$22*'DATA COLLATED'!Q131*'DATA COLLATED'!Q131 -> 1.547733419 | S131: ='GRAPHS FOR PAPER'!B$25+'GRAPHS FOR PAPER'!B$26*'DATA COLLATED'!Q131 -> 25.8777614
Q132: -0.8 | R132: ='GRAPHS FOR PAPER'!B$20+'GRAPHS FOR PAPER'!B$21*'DATA COLLATED'!Q132+'GRAPHS FOR PAPER'!B$22*'DATA COLLATED'!Q132*'DATA COLLATED'!Q132 -> 1.5492456 | S132: ='GRAPHS FOR PAPER'!B$25+'GRAPHS FOR PAPER'!B$26*'DATA COLLATED'!Q132 -> 25.871752
Q133: -0.79 | R133: ='GRAPHS FOR PAPER'!B$20+'GRAPHS FOR PAPER'!B$21*'DATA COLLATED'!Q133+'GRAPHS FOR PAPER'!B$22*'DATA COLLATED'!Q133*'DATA COLLATED'!Q133 -> 1.550726139 | S133: ='GRAPHS FOR PAPER'!B$25+'GRAPHS FOR PAPER'!B$26*'DATA COLLATED'!Q133 -> 25.8657426
Q134: -0.78 | R134: ='GRAPHS FOR PAPER'!B$20+'GRAPHS FOR PAPER'!B$21*'DATA COLLATED'!Q134+'GRAPHS FOR PAPER'!B$22*'DATA COLLATED'!Q134*'DATA COLLATED'!Q134 -> 1.552175036 | S134: ='GRAPHS FOR PAPER'!B$25+'GRAPHS FOR PAPER'!B$26*'DATA COLLATED'!Q134 -> 25.8597332
Q135: -0.77 | R135: ='GRAPHS FOR PAPER'!B$20+'GRAPHS FOR PAPER'!B$21*'DATA COLLATED'!Q135+'GRAPHS FOR PAPER'!B$22*'DATA COLLATED'!Q135*'DATA COLLATED'!Q135 -> 1.553592291 | S135: ='GRAPHS FOR PAPER'!B$25+'GRAPHS FOR PAPER'!B$26*'DATA COLLATED'!Q135 -> 25.8537238
Q136: -0.76 | R136: ='GRAPHS FOR PAPER'!B$20+'GRAPHS FOR PAPER'!B$21*'DATA COLLATED'!Q136+'GRAPHS FOR PAPER'!B$22*'DATA COLLATED'!Q136*'DATA COLLATED'!Q136 -> 1.554977904 | S136: ='GRAPHS FOR PAPER'!B$25+'GRAPHS FOR PAPER'!B$26*'DATA COLLATED'!Q136 -> 25.8477144
Q137: -0.75 | R137: ='GRAPHS FOR PAPER'!B$20+'GRAPHS FOR PAPER'!B$21*'DATA COLLATED'!Q137+'GRAPHS FOR PAPER'!B$22*'DATA COLLATED'!Q137*'DATA COLLATED'!Q137 -> 1.556331875 | S137: ='GRAPHS FOR PAPER'!B$25+'GRAPHS FOR PAPER'!B$26*'DATA COLLATED'!Q137 -> 25.841705
Q138: -0.74 | R138: ='GRAPHS FOR PAPER'!B$20+'GRAPHS FOR PAPER'!B$21*'DATA COLLATED'!Q138+'GRAPHS FOR PAPER'!B$22*'DATA COLLATED'!Q138*'DATA COLLATED'!Q138 -> 1.557654204 | S138: ='GRAPHS FOR PAPER'!B$25+'GRAPHS FOR PAPER'!B$26*'DATA COLLATED'!Q138 -> 25.8356956
Q139: -0.73 | R139: ='GRAPHS FOR PAPER'!B$20+'GRAPHS FOR PAPER'!B$21*'DATA COLLATED'!Q139+'GRAPHS FOR PAPER'!B$22*'DATA COLLATED'!Q139*'DATA COLLATED'!Q139 -> 1.558944891 | S139: ='GRAPHS FOR PAPER'!B$25+'GRAPHS FOR PAPER'!B$26*'DATA COLLATED'!Q139 -> 25.8296862
Q140: -0.72 | R140: ='GRAPHS FOR PAPER'!B$20+'GRAPHS FOR PAPER'!B$21*'DATA COLLATED'!Q140+'GRAPHS FOR PAPER'!B$22*'DATA COLLATED'!Q140*'DATA COLLATED'!Q140 -> 1.560203936 | S140: ='GRAPHS FOR PAPER'!B$25+'GRAPHS FOR PAPER'!B$26*'DATA COLLATED'!Q140 -> 25.8236768
Q141: -0.71 | R141: ='GRAPHS FOR PAPER'!B$20+'GRAPHS FOR PAPER'!B$21*'DATA COLLATED'!Q141+'GRAPHS FOR PAPER'!B$22*'DATA COLLATED'!Q141*'DATA COLLATED'!Q141 -> 1.561431339 | S141: ='GRAPHS FOR PAPER'!B$25+'GRAPHS FOR PAPER'!B$26*'DATA COLLATED'!Q141 -> 25.8176674
Q142: -0.7 | R142: ='GRAPHS FOR PAPER'!B$20+'GRAPHS FOR PAPER'!B$21*'DATA COLLATED'!Q142+'GRAPHS FOR PAPER'!B$22*'DATA COLLATED'!Q142*'DATA COLLATED'!Q142 -> 1.5626271 | S142: ='GRAPHS FOR PAPER'!B$25+'GRAPHS FOR PAPER'!B$26*'DATA COLLATED'!Q142 -> 25.811658
Q143: -0.69 | R143: ='GRAPHS FOR PAPER'!B$20+'GRAPHS FOR PAPER'!B$21*'DATA COLLATED'!Q143+'GRAPHS FOR PAPER'!B$22*'DATA COLLATED'!Q143*'DATA COLLATED'!Q143 -> 1.563791219 | S143: ='GRAPHS FOR PAPER'!B$25+'GRAPHS FOR PAPER'!B$26*'DATA COLLATED'!Q143 -> 25.8056486
Q144: -0.68 | R144: ='GRAPHS FOR PAPER'!B$20+'GRAPHS FOR PAPER'!B$21*'DATA COLLATED'!Q144+'GRAPHS FOR PAPER'!B$22*'DATA COLLATED'!Q144*'DATA COLLATED'!Q144 -> 1.564923696 | S144: ='GRAPHS FOR PAPER'!B$25+'GRAPHS FOR PAPER'!B$26*'DATA COLLATED'!Q144 -> 25.7996392
Q145: -0.67 | R145: ='GRAPHS FOR PAPER'!B$20+'GRAPHS FOR PAPER'!B$21*'DATA COLLATED'!Q145+'GRAPHS FOR PAPER'!B$22*'DATA COLLATED'!Q145*'DATA COLLATED'!Q145 -> 1.566024531 | S145: ='GRAPHS FOR PAPER'!B$25+'GRAPHS FOR PAPER'!B$26*'DATA COLLATED'!Q145 -> 25.7936298
Q146: -0.66 | R146: ='GRAPHS FOR PAPER'!B$20+'GRAPHS FOR PAPER'!B$21*'DATA COLLATED'!Q146+'GRAPHS FOR PAPER'!B$22*'DATA COLLATED'!Q146*'DATA COLLATED'!Q146 -> 1.567093724 | S146: ='GRAPHS FOR PAPER'!B$25+'GRAPHS FOR PAPER'!B$26*'DATA COLLATED'!Q146 -> 25.7876204
Q147: -0.65 | R147: ='GRAPHS FOR PAPER'!B$20+'GRAPHS FOR PAPER'!B$21*'DATA COLLATED'!Q147+'GRAPHS FOR PAPER'!B$22*'DATA COLLATED'!Q147*'DATA COLLATED'!Q147 -> 1.568131275 | S147: ='GRAPHS FOR PAPER'!B$25+'GRAPHS FOR PAPER'!B$26*'DATA COLLATED'!Q147 -> 25.781611
Q148: -0.64 | R148: ='GRAPHS FOR PAPER'!B$20+'GRAPHS FOR PAPER'!B$21*'DATA COLLATED'!Q148+'GRAPHS FOR PAPER'!B$22*'DATA COLLATED'!Q148*'DATA COLLATED'!Q148 -> 1.569137184 | S148: ='GRAPHS FOR PAPER'!B$25+'GRAPHS FOR PAPER'!B$26*'DATA COLLATED'!Q148 -> 25.7756016
Q149: -0.63 | R149: ='GRAPHS FOR PAPER'!B$20+'GRAPHS FOR PAPER'!B$21*'DATA COLLATED'!Q149+'GRAPHS FOR PAPER'!B$22*'DATA COLLATED'!Q149*'DATA COLLATED'!Q149 -> 1.570111451 | S149: ='GRAPHS FOR PAPER'!B$25+'GRAPHS FOR PAPER'!B$26*'DATA COLLATED'!Q149 -> 25.7695922
Q150: -0.62 | R150: ='GRAPHS FOR PAPER'!B$20+'GRAPHS FOR PAPER'!B$21*'DATA COLLATED'!Q150+'GRAPHS FOR PAPER'!B$22*'DATA COLLATED'!Q150*'DATA COLLATED'!Q150 -> 1.571054076 | S150: ='GRAPHS FOR PAPER'!B$25+'GRAPHS FOR PAPER'!B$26*'DATA COLLATED'!Q150 -> 25.7635828
Q151: -0.61 | R151: ='GRAPHS FOR PAPER'!B$20+'GRAPHS FOR PAPER'!B$21*'DATA COLLATED'!Q151+'GRAPHS FOR PAPER'!B$22*'DATA COLLATED'!Q151*'DATA COLLATED'!Q151 -> 1.571965059 | S151: ='GRAPHS FOR PAPER'!B$25+'GRAPHS FOR PAPER'!B$26*'DATA COLLATED'!Q151 -> 25.7575734
Q152: -0.6 | R152: ='GRAPHS FOR PAPER'!B$20+'GRAPHS FOR PAPER'!B$21*'DATA COLLATED'!Q152+'GRAPHS FOR PAPER'!B$22*'DATA COLLATED'!Q152*'DATA COLLATED'!Q152 -> 1.5728444 | S152: ='GRAPHS FOR PAPER'!B$25+'GRAPHS FOR PAPER'!B$26*'DATA COLLATED'!Q152 -> 25.751564
Q153: -0.59 | R153: ='GRAPHS FOR PAPER'!B$20+'GRAPHS FOR PAPER'!B$21*'DATA COLLATED'!Q153+'GRAPHS FOR PAPER'!B$22*'DATA COLLATED'!Q153*'DATA COLLATED'!Q153 -> 1.573692099 | S153: ='GRAPHS FOR PAPER'!B$25+'GRAPHS FOR PAPER'!B$26*'DATA COLLATED'!Q153 -> 25.7455546
Q154: -0.58 | R154: ='GRAPHS FOR PAPER'!B$20+'GRAPHS FOR PAPER'!B$21*'DATA COLLATED'!Q154+'GRAPHS FOR PAPER'!B$22*'DATA COLLATED'!Q154*'DATA COLLATED'!Q154 -> 1.574508156 | S154: ='GRAPHS FOR PAPER'!B$25+'GRAPHS FOR PAPER'!B$26*'DATA COLLATED'!Q154 -> 25.7395452
Q155: -0.57 | R155: ='GRAPHS FOR PAPER'!B$20+'GRAPHS FOR PAPER'!B$21*'DATA COLLATED'!Q155+'GRAPHS FOR PAPER'!B$22*'DATA COLLATED'!Q155*'DATA COLLATED'!Q155 -> 1.575292571 | S155: ='GRAPHS FOR PAPER'!B$25+'GRAPHS FOR PAPER'!B$26*'DATA COLLATED'!Q155 -> 25.7335358
Q156: -0.56 | R156: ='GRAPHS FOR PAPER'!B$20+'GRAPHS FOR PAPER'!B$21*'DATA COLLATED'!Q156+'GRAPHS FOR PAPER'!B$22*'DATA COLLATED'!Q156*'DATA COLLATED'!Q156 -> 1.576045344 | S156: ='GRAPHS FOR PAPER'!B$25+'GRAPHS FOR PAPER'!B$26*'DATA COLLATED'!Q156 -> 25.7275264
Q157: -0.55 | R157: ='GRAPHS FOR PAPER'!B$20+'GRAPHS FOR PAPER'!B$21*'DATA COLLATED'!Q157+'GRAPHS FOR PAPER'!B$22*'DATA COLLATED'!Q157*'DATA COLLATED'!Q157 -> 1.576766475 | S157: ='GRAPHS FOR PAPER'!B$25+'GRAPHS FOR PAPER'!B$26*'DATA COLLATED'!Q157 -> 25.721517
Q158: -0.54 | R158: ='GRAPHS FOR PAPER'!B$20+'GRAPHS FOR PAPER'!B$21*'DATA COLLATED'!Q158+'GRAPHS FOR PAPER'!B$22*'DATA COLLATED'!Q158*'DATA COLLATED'!Q158 -> 1.577455964 | S158: ='GRAPHS FOR PAPER'!B$25+'GRAPHS FOR PAPER'!B$26*'DATA COLLATED'!Q158 -> 25.7155076
Q159: -0.53 | R159: ='GRAPHS FOR PAPER'!B$20+'GRAPHS FOR PAPER'!B$21*'DATA COLLATED'!Q159+'GRAPHS FOR PAPER'!B$22*'DATA COLLATED'!Q159*'DATA COLLATED'!Q159 -> 1.578113811 | S159: ='GRAPHS FOR PAPER'!B$25+'GRAPHS FOR PAPER'!B$26*'DATA COLLATED'!Q159 -> 25.7094982
Q160: -0.52 | R160: ='GRAPHS FOR PAPER'!B$20+'GRAPHS FOR PAPER'!B$21*'DATA COLLATED'!Q160+'GRAPHS FOR PAPER'!B$22*'DATA COLLATED'!Q160*'DATA COLLATED'!Q160 -> 1.578740016 | S160: ='GRAPHS FOR PAPER'!B$25+'GRAPHS FOR PAPER'!B$26*'DATA COLLATED'!Q160 -> 25.7034888
Q161: -0.51 | R161: ='GRAPHS FOR PAPER'!B$20+'GRAPHS FOR PAPER'!B$21*'DATA COLLATED'!Q161+'GRAPHS FOR PAPER'!B$22*'DATA COLLATED'!Q161*'DATA COLLATED'!Q161 -> 1.579334579 | S161: ='GRAPHS FOR PAPER'!B$25+'GRAPHS FOR PAPER'!B$26*'DATA COLLATED'!Q161 -> 25.6974794
Q162: -0.5 | R162: ='GRAPHS FOR PAPER'!B$20+'GRAPHS FOR PAPER'!B$21*'DATA COLLATED'!Q162+'GRAPHS FOR PAPER'!B$22*'DATA COLLATED'!Q162*'DATA COLLATED'!Q162 -> 1.5798975 | S162: ='GRAPHS FOR PAPER'!B$25+'GRAPHS FOR PAPER'!B$26*'DATA COLLATED'!Q162 -> 25.69147
Q163: -0.49 | R163: ='GRAPHS FOR PAPER'!B$20+'GRAPHS FOR PAPER'!B$21*'DATA COLLATED'!Q163+'GRAPHS FOR PAPER'!B$22*'DATA COLLATED'!Q163*'DATA COLLATED'!Q163 -> 1.580428779 | S163: ='GRAPHS FOR PAPER'!B$25+'GRAPHS FOR PAPER'!B$26*'DATA COLLATED'!Q163 -> 25.6854606
Q164: -0.48 | R164: ='GRAPHS FOR PAPER'!B$20+'GRAPHS FOR PAPER'!B$21*'DATA COLLATED'!Q164+'GRAPHS FOR PAPER'!B$22*'DATA COLLATED'!Q164*'DATA COLLATED'!Q164 -> 1.580928416 | S164: ='GRAPHS FOR PAPER'!B$25+'GRAPHS FOR PAPER'!B$26*'DATA COLLATED'!Q164 -> 25.6794512
Q165: -0.47 | R165: ='GRAPHS FOR PAPER'!B$20+'GRAPHS FOR PAPER'!B$21*'DATA COLLATED'!Q165+'GRAPHS FOR PAPER'!B$22*'DATA COLLATED'!Q165*'DATA COLLATED'!Q165 -> 1.581396411 | S165: ='GRAPHS FOR PAPER'!B$25+'GRAPHS FOR PAPER'!B$26*'DATA COLLATED'!Q165 -> 25.6734418
Q166: -0.46 | R166: ='GRAPHS FOR PAPER'!B$20+'GRAPHS FOR PAPER'!B$21*'DATA COLLATED'!Q166+'GRAPHS FOR PAPER'!B$22*'DATA COLLATED'!Q166*'DATA COLLATED'!Q166 -> 1.581832764 | S166: ='GRAPHS FOR PAPER'!B$25+'GRAPHS FOR PAPER'!B$26*'DATA COLLATED'!Q166 -> 25.6674324
Q167: -0.45 | R167: ='GRAPHS FOR PAPER'!B$20+'GRAPHS FOR PAPER'!B$21*'DATA COLLATED'!Q167+'GRAPHS FOR PAPER'!B$22*'DATA COLLATED'!Q167*'DATA COLLATED'!Q167 -> 1.582237475 | S167: ='GRAPHS FOR PAPER'!B$25+'GRAPHS FOR PAPER'!B$26*'DATA COLLATED'!Q167 -> 25.661423
Q168: -0.44 | R168: ='GRAPHS FOR PAPER'!B$20+'GRAPHS FOR PAPER'!B$21*'DATA COLLATED'!Q168+'GRAPHS FOR PAPER'!B$22*'DATA COLLATED'!Q168*'DATA COLLATED'!Q168 -> 1.582610544 | S168: ='GRAPHS FOR PAPER'!B$25+'GRAPHS FOR PAPER'!B$26*'DATA COLLATED'!Q168 -> 25.6554136
Q169: -0.43 | R169: ='GRAPHS FOR PAPER'!B$20+'GRAPHS FOR PAPER'!B$21*'DATA COLLATED'!Q169+'GRAPHS FOR PAPER'!B$22*'DATA COLLATED'!Q169*'DATA COLLATED'!Q169 -> 1.582951971 | S169: ='GRAPHS FOR PAPER'!B$25+'GRAPHS FOR PAPER'!B$26*'DATA COLLATED'!Q169 -> 25.6494042
Q170: -0.42 | R170: ='GRAPHS FOR PAPER'!B$20+'GRAPHS FOR PAPER'!B$21*'DATA COLLATED'!Q170+'GRAPHS FOR PAPER'!B$22*'DATA COLLATED'!Q170*'DATA COLLATED'!Q170 -> 1.583261756 | S170: ='GRAPHS FOR PAPER'!B$25+'GRAPHS FOR PAPER'!B$26*'DATA COLLATED'!Q170 -> 25.6433948
Q171: -0.41 | R171: ='GRAPHS FOR PAPER'!B$20+'GRAPHS FOR PAPER'!B$21*'DATA COLLATED'!Q171+'GRAPHS FOR PAPER'!B$22*'DATA COLLATED'!Q171*'DATA COLLATED'!Q171 -> 1.583539899 | S171: ='GRAPHS FOR PAPER'!B$25+'GRAPHS FOR PAPER'!B$26*'DATA COLLATED'!Q171 -> 25.6373854
Q172: -0.4 | R172: ='GRAPHS FOR PAPER'!B$20+'GRAPHS FOR PAPER'!B$21*'DATA COLLATED'!Q172+'GRAPHS FOR PAPER'!B$22*'DATA COLLATED'!Q172*'DATA COLLATED'!Q172 -> 1.5837864 | S172: ='GRAPHS FOR PAPER'!B$25+'GRAPHS FOR PAPER'!B$26*'DATA COLLATED'!Q172 -> 25.631376
Q173: -0.39 | R173: ='GRAPHS FOR PAPER'!B$20+'GRAPHS FOR PAPER'!B$21*'DATA COLLATED'!Q173+'GRAPHS FOR PAPER'!B$22*'DATA COLLATED'!Q173*'DATA COLLATED'!Q173 -> 1.584001259 | S173: ='GRAPHS FOR PAPER'!B$25+'GRAPHS FOR PAPER'!B$26*'DATA COLLATED'!Q173 -> 25.6253666
Q174: -0.38 | R174: ='GRAPHS FOR PAPER'!B$20+'GRAPHS FOR PAPER'!B$21*'DATA COLLATED'!Q174+'GRAPHS FOR PAPER'!B$22*'DATA COLLATED'!Q174*'DATA COLLATED'!Q174 -> 1.584184476 | S174: ='GRAPHS FOR PAPER'!B$25+'GRAPHS FOR PAPER'!B$26*'DATA COLLATED'!Q174 -> 25.6193572
Q175: -0.37 | R175: ='GRAPHS FOR PAPER'!B$20+'GRAPHS FOR PAPER'!B$21*'DATA COLLATED'!Q175+'GRAPHS FOR PAPER'!B$22*'DATA COLLATED'!Q175*'DATA COLLATED'!Q175 -> 1.584336051 | S175: ='GRAPHS FOR PAPER'!B$25+'GRAPHS FOR PAPER'!B$26*'DATA COLLATED'!Q175 -> 25.6133478
Q176: -0.36 | R176: ='GRAPHS FOR PAPER'!B$20+'GRAPHS FOR PAPER'!B$21*'DATA COLLATED'!Q176+'GRAPHS FOR PAPER'!B$22*'DATA COLLATED'!Q176*'DATA COLLATED'!Q176 -> 1.584455984 | S176: ='GRAPHS FOR PAPER'!B$25+'GRAPHS FOR PAPER'!B$26*'DATA COLLATED'!Q176 -> 25.6073384
Q177: -0.35 | R177: ='GRAPHS FOR PAPER'!B$20+'GRAPHS FOR PAPER'!B$21*'DATA COLLATED'!Q177+'GRAPHS FOR PAPER'!B$22*'DATA COLLATED'!Q177*'DATA COLLATED'!Q177 -> 1.584544275 | S177: ='GRAPHS FOR PAPER'!B$25+'GRAPHS FOR PAPER'!B$26*'DATA COLLATED'!Q177 -> 25.601329
Q178: -0.34 | R178: ='GRAPHS FOR PAPER'!B$20+'GRAPHS FOR PAPER'!B$21*'DATA COLLATED'!Q178+'GRAPHS FOR PAPER'!B$22*'DATA COLLATED'!Q178*'DATA COLLATED'!Q178 -> 1.584600924 | S178: ='GRAPHS FOR PAPER'!B$25+'GRAPHS FOR PAPER'!B$26*'DATA COLLATED'!Q178 -> 25.5953196
Q179: -0.33 | R179: ='GRAPHS FOR PAPER'!B$20+'GRAPHS FOR PAPER'!B$21*'DATA COLLATED'!Q179+'GRAPHS FOR PAPER'!B$22*'DATA COLLATED'!Q179*'DATA COLLATED'!Q179 -> 1.584625931 | S179: ='GRAPHS FOR PAPER'!B$25+'GRAPHS FOR PAPER'!B$26*'DATA COLLATED'!Q179 -> 25.5893102
Q180: -0.32 | R180: ='GRAPHS FOR PAPER'!B$20+'GRAPHS FOR PAPER'!B$21*'DATA COLLATED'!Q180+'GRAPHS FOR PAPER'!B$22*'DATA COLLATED'!Q180*'DATA COLLATED'!Q180 -> 1.584619296 | S180: ='GRAPHS FOR PAPER'!B$25+'GRAPHS FOR PAPER'!B$26*'DATA COLLATED'!Q180 -> 25.5833008
Q181: -0.31 | R181: ='GRAPHS FOR PAPER'!B$20+'GRAPHS FOR PAPER'!B$21*'DATA COLLATED'!Q181+'GRAPHS FOR PAPER'!B$22*'DATA COLLATED'!Q181*'DATA COLLATED'!Q181 -> 1.584581019 | S181: ='GRAPHS FOR PAPER'!B$25+'GRAPHS FOR PAPER'!B$26*'DATA COLLATED'!Q181 -> 25.5772914
Q182: -0.3 | R182: ='GRAPHS FOR PAPER'!B$20+'GRAPHS FOR PAPER'!B$21*'DATA COLLATED'!Q182+'GRAPHS FOR PAPER'!B$22*'DATA COLLATED'!Q182*'DATA COLLATED'!Q182 -> 1.5845111 | S182: ='GRAPHS FOR PAPER'!B$25+'GRAPHS FOR PAPER'!B$26*'DATA COLLATED'!Q182 -> 25.571282
Q183: -0.29 | R183: ='GRAPHS FOR PAPER'!B$20+'GRAPHS FOR PAPER'!B$21*'DATA COLLATED'!Q183+'GRAPHS FOR PAPER'!B$22*'DATA COLLATED'!Q183*'DATA COLLATED'!Q183 -> 1.584409539 | S183: ='GRAPHS FOR PAPER'!B$25+'GRAPHS FOR PAPER'!B$26*'DATA COLLATED'!Q183 -> 25.5652726
Q184: -0.28 | R184: ='GRAPHS FOR PAPER'!B$20+'GRAPHS FOR PAPER'!B$21*'DATA COLLATED'!Q184+'GRAPHS FOR PAPER'!B$22*'DATA COLLATED'!Q184*'DATA COLLATED'!Q184 -> 1.584276336 | S184: ='GRAPHS FOR PAPER'!B$25+'GRAPHS FOR PAPER'!B$26*'DATA COLLATED'!Q184 -> 25.5592632
Q185: -0.27 | R185: ='GRAPHS FOR PAPER'!B$20+'GRAPHS FOR PAPER'!B$21*'DATA COLLATED'!Q185+'GRAPHS FOR PAPER'!B$22*'DATA COLLATED'!Q185*'DATA COLLATED'!Q185 -> 1.584111491 | S185: ='GRAPHS FOR PAPER'!B$25+'GRAPHS FOR PAPER'!B$26*'DATA COLLATED'!Q185 -> 25.5532538
Q186: -0.26 | R186: ='GRAPHS FOR PAPER'!B$20+'GRAPHS FOR PAPER'!B$21*'DATA COLLATED'!Q186+'GRAPHS FOR PAPER'!B$22*'DATA COLLATED'!Q186*'DATA COLLATED'!Q186 -> 1.583915004 | S186: ='GRAPHS FOR PAPER'!B$25+'GRAPHS FOR PAPER'!B$26*'DATA COLLATED'!Q186 -> 25.5472444
Q187: -0.25 | R187: ='GRAPHS FOR PAPER'!B$20+'GRAPHS FOR PAPER'!B$21*'DATA COLLATED'!Q187+'GRAPHS FOR PAPER'!B$22*'DATA COLLATED'!Q187*'DATA COLLATED'!Q187 -> 1.583686875 | S187: ='GRAPHS FOR PAPER'!B$25+'GRAPHS FOR PAPER'!B$26*'DATA COLLATED'!Q187 -> 25.541235
Q188: -0.24 | R188: ='GRAPHS FOR PAPER'!B$20+'GRAPHS FOR PAPER'!B$21*'DATA COLLATED'!Q188+'GRAPHS FOR PAPER'!B$22*'DATA COLLATED'!Q188*'DATA COLLATED'!Q188 -> 1.583427104 | S188: ='GRAPHS FOR PAPER'!B$25+'GRAPHS FOR PAPER'!B$26*'DATA COLLATED'!Q188 -> 25.5352256
Q189: -0.23 | R189: ='GRAPHS FOR PAPER'!B$20+'GRAPHS FOR PAPER'!B$21*'DATA COLLATED'!Q189+'GRAPHS FOR PAPER'!B$22*'DATA COLLATED'!Q189*'DATA COLLATED'!Q189 -> 1.583135691 | S189: ='GRAPHS FOR PAPER'!B$25+'GRAPHS FOR PAPER'!B$26*'DATA COLLATED'!Q189 -> 25.5292162
Q190: -0.22 | R190: ='GRAPHS FOR PAPER'!B$20+'GRAPHS FOR PAPER'!B$21*'DATA COLLATED'!Q190+'GRAPHS FOR PAPER'!B$22*'DATA COLLATED'!Q190*'DATA COLLATED'!Q190 -> 1.582812636 | S190: ='GRAPHS FOR PAPER'!B$25+'GRAPHS FOR PAPER'!B$26*'DATA COLLATED'!Q190 -> 25.5232068
Q191: -0.21 | R191: ='GRAPHS FOR PAPER'!B$20+'GRAPHS FOR PAPER'!B$21*'DATA COLLATED'!Q191+'GRAPHS FOR PAPER'!B$22*'DATA COLLATED'!Q191*'DATA COLLATED'!Q191 -> 1.582457939 | S191: ='GRAPHS FOR PAPER'!B$25+'GRAPHS FOR PAPER'!B$26*'DATA COLLATED'!Q191 -> 25.5171974
Q192: -0.2 | R192: ='GRAPHS FOR PAPER'!B$20+'GRAPHS FOR PAPER'!B$21*'DATA COLLATED'!Q192+'GRAPHS FOR PAPER'!B$22*'DATA COLLATED'!Q192*'DATA COLLATED'!Q192 -> 1.5820716 | S192: ='GRAPHS FOR PAPER'!B$25+'GRAPHS FOR PAPER'!B$26*'DATA COLLATED'!Q192 -> 25.511188
Q193: -0.19 | R193: ='GRAPHS FOR PAPER'!B$20+'GRAPHS FOR PAPER'!B$21*'DATA COLLATED'!Q193+'GRAPHS FOR PAPER'!B$22*'DATA COLLATED'!Q193*'DATA COLLATED'!Q193 -> 1.581653619 | S193: ='GRAPHS FOR PAPER'!B$25+'GRAPHS FOR PAPER'!B$26*'DATA COLLATED'!Q193 -> 25.5051786
Q194: -0.18 | R194: ='GRAPHS FOR PAPER'!B$20+'GRAPHS FOR PAPER'!B$21*'DATA COLLATED'!Q194+'GRAPHS FOR PAPER'!B$22*'DATA COLLATED'!Q194*'DATA COLLATED'!Q194 -> 1.581203996 | S194: ='GRAPHS FOR PAPER'!B$25+'GRAPHS FOR PAPER'!B$26*'DATA COLLATED'!Q194 -> 25.4991692
Q195: -0.17 | R195: ='GRAPHS FOR PAPER'!B$20+'GRAPHS FOR PAPER'!B$21*'DATA COLLATED'!Q195+'GRAPHS FOR PAPER'!B$22*'DATA COLLATED'!Q195*'DATA COLLATED'!Q195 -> 1.580722731 | S195: ='GRAPHS FOR PAPER'!B$25+'GRAPHS FOR PAPER'!B$26*'DATA COLLATED'!Q195 -> 25.4931598
Q196: -0.16 | R196: ='GRAPHS FOR PAPER'!B$20+'GRAPHS FOR PAPER'!B$21*'DATA COLLATED'!Q196+'GRAPHS FOR PAPER'!B$22*'DATA COLLATED'!Q196*'DATA COLLATED'!Q196 -> 1.580209824 | S196: ='GRAPHS FOR PAPER'!B$25+'GRAPHS FOR PAPER'!B$26*'DATA COLLATED'!Q196 -> 25.4871504
Q197: -0.15 | R197: ='GRAPHS FOR PAPER'!B$20+'GRAPHS FOR PAPER'!B$21*'DATA COLLATED'!Q197+'GRAPHS FOR PAPER'!B$22*'DATA COLLATED'!Q197*'DATA COLLATED'!Q197 -> 1.579665275 | S197: ='GRAPHS FOR PAPER'!B$25+'GRAPHS FOR PAPER'!B$26*'DATA COLLATED'!Q197 -> 25.481141
Q198: -0.14 | R198: ='GRAPHS FOR PAPER'!B$20+'GRAPHS FOR PAPER'!B$21*'DATA COLLATED'!Q198+'GRAPHS FOR PAPER'!B$22*'DATA COLLATED'!Q198*'DATA COLLATED'!Q198 -> 1.579089084 | S198: ='GRAPHS FOR PAPER'!B$25+'GRAPHS FOR PAPER'!B$26*'DATA COLLATED'!Q198 -> 25.4751316
Q199: -0.13 | R199: ='GRAPHS FOR PAPER'!B$20+'GRAPHS FOR PAPER'!B$21*'DATA COLLATED'!Q199+'GRAPHS FOR PAPER'!B$22*'DATA COLLATED'!Q199*'DATA COLLATED'!Q199 -> 1.578481251 | S199: ='GRAPHS FOR PAPER'!B$25+'GRAPHS FOR PAPER'!B$26*'DATA COLLATED'!Q199 -> 25.4691222
Q200: -0.12 | R200: ='GRAPHS FOR PAPER'!B$20+'GRAPHS FOR PAPER'!B$21*'DATA COLLATED'!Q200+'GRAPHS FOR PAPER'!B$22*'DATA COLLATED'!Q200*'DATA COLLATED'!Q200 -> 1.577841776 | S200: ='GRAPHS FOR PAPER'!B$25+'GRAPHS FOR PAPER'!B$26*'DATA COLLATED'!Q200 -> 25.4631128
... 220 more rows
